Workbook

Sheet STARTNA
A5: 32. OTVORENO PRVENSTVO DALMACIJE U DALJINSKOM PLIVANJU - OMIŠ 2025.
B7: dionica - 1501 metar | F7: Omiš, 23. 8. 2025.
B9: STARTNA LISTA
A11: ST. BR | B11: PREZIME I IME | C11: S | D11: GOD | E11: KAT | F11: klub/rekr | G11: MJESTO | H11: DOM
A12: 1 | B12: PRVAN BORKO | C12: M | D12: 1951 | E12: =IF(D12>2012,"M/Ž 12",IF(D12>2009,"M/Ž 15",IF(D12>2005,"M/Ž 19",IF(D12>1995,"M/Ž 29",IF(D12>1985,"M/Ž 39",IF(D12>1975,"M/Ž 49",IF(D12>1965,"M/Ž 59",IF(D12>1959,"M/Ž 65",IF(D12>1954,"M/Ž 70",IF(D12>1949,"M/Ž 75",IF(D12>1931,"M/Ž 75+",))))))))))) -> M/Ž 75 | F12: REKR | G12: ZAGREB | H12: =IF($G$12:$G$162="Omiš","DOM",) -> 0
A13: 2 | B13: VIDEKOVIĆ UNA | C13: Ž | D13: 2011 | E13: M/Ž 15 | F13: KLUB | G13: VINKOVCI | H13: 0
A14: 3 | B14: ŠKORIĆ JOSIP | C14: M | D14: 1960 | E14: M/Ž 65 | F14: REKR | G14: BIH | H14: 0
A15: 4 | B15: ĆOSIĆ HRVOJE | C15: M | D15: 1959 | E15: M/Ž 70 | F15: REKR | G15: BIH | H15: 0
A16: 5 | B16: KAČIĆ ZORAN | C16: M | D16: 1950 | E16: M/Ž 75 | F16: REKR | G16: SPLIT | H16: 0
A17: 6 | B17: KAČIĆ DUPLANČIĆ DIANA | C17: Ž | D17: 1978 | E17: M/Ž 49 | F17: REKR | G17: SPLIT | H17: 0
A18: 7 | B18: KEKEZ ANTE | C18: M | D18: 1950 | E18: M/Ž 75 | F18: REKR | G18: OMIŠ | H18: DOM
A19: 8 | B19: VERINA MARIA | C19: Ž | D19: 1965 | E19: M/Ž 65 | F19: REKR | G19: SUTIVAN | H19: 0
A20: 9 | B20: KNEŽEVIĆ FILIP | C20: M | D20: 1995 | E20: M/Ž 39 | F20: REKR | G20: ŠIBENIK | H20: 0
A21: 10 | B21: RADNIĆ GEA | C21: Ž | D21: 2013 | E21: M/Ž 12 | F21: KLUB | G21: SPLIT | H21: 0
A22: 11 | B22: BRKOVIĆ MARIN | C22: M | D22: 2015 | E22: M/Ž 12 | F22: KLUB | G22: SPLIT | H22: 0
A23: 12 | B23: DUMANIĆ NAĐAN | C23: M | D23: 1962 | E23: M/Ž 65 | F23: REKR | G23: SPLIT | H23: 0
A24: 13 | B24: ŠUŠNJAR MARIN | C24: M | D24: 1961 | E24: M/Ž 65 | F24: REKR | G24: SPLIT | H24: 0
A25: 14 | B25: ŠUŠNJAR PJERA | C25: Ž | D25: 1967 | E25: M/Ž 59 | F25: REKR | G25: SPLIT | H25: 0
A26: 15 | B26: LIPNJAK TAMARA | C26: Ž | D26: 1992 | E26: M/Ž 39 | F26: REKR | G26: ZAGREB | H26: 0
A27: 16 | B27: BILANOVIĆ JURE | C27: M | D27: 1981 | E27: M/Ž 49 | F27: REKR | G27: DUGI RAT | H27: 0
A28: 17 | B28: BELOUSOVA MARIA | C28: Ž | D28: 2012 | E28: M/Ž 15 | F28: KLUB | G28: BRASINA | H28: 0
A29: 18 | B29: TOMIĆ ZORAN | C29: M | D29: 1974 | E29: M/Ž 59 | F29: REKR | G29: SPLIT | H29: 0
A30: 19 | B30: GRGAT MARIJO | C30: M | D30: 1974 | E30: M/Ž 59 | F30: REKR | G30: DUGI RAT | H30: 0
A31: 20 | B31: LUKIĆ ZITA | C31: Ž | D31: 2002 | E31: M/Ž 29 | F31: REKR | G31: SPLIT | H31: 0
A32: 21 | B32: ARAPOVIĆ ANA | C32: Ž | D32: 1982 | E32: M/Ž 49 | F32: REKR | G32: SPLIT | H32: 0
A33: 22 | B33: BALIĆ ANTE | C33: M | D33: 1981 | E33: M/Ž 49 | F33: REKR | G33: ZAGREB | H33: 0
A34: 23 | B34: KUNDID IGOR | C34: M | D34: 1981 | E34: M/Ž 49 | F34: REKR | G34: STOBREČ | H34: 0
A35: 24 | B35: KUNDID TONI | C35: M | D35: 2014 | E35: M/Ž 12 | F35: REKR | G35: STOBREČ | H35: 0
A36: 25 | B36: BRATIĆ DAMIR | C36: M | D36: 2012 | E36: M/Ž 15 | F36: KLUB | G36: SPLIT | H36: 0
A37: 26 | B37: GRUBIŠIĆ INES | C37: Ž | D37: 1995 | E37: M/Ž 39 | F37: REKR | G37: ZAGREB | H37: 0
A38: 27 | B38: GRUBIŠIĆ DRAGAN | C38: M | D38: 1968 | E38: M/Ž 59 | F38: REKR | G38: ŠIBENIK | H38: 0
A39: 28 | B39: ZEKANOVIĆ MIA | C39: Ž | D39: 2010 | E39: M/Ž 15 | F39: REKR | G39: ZADAR | H39: 0
A40: 29 | B40: STOJANOVIĆ MIHOVIL | C40: M | D40: 1985 | E40: M/Ž 49 | F40: REKR | G40: DRNIŠ | H40: 0
A41: 30 | B41: BRZOVIĆ ANA | C41: Ž | D41: 2008 | E41: M/Ž 19 | F41: REKR | G41: OMIŠ | H41: DOM
A42: 31 | B42: GALIĆ PETRA | C42: Ž | D42: 2010 | E42: M/Ž 15 | F42: REKR | G42: SPLIT | H42: 0
A43: 32 | B43: TAFRA MATE | C43: M | D43: 2009 | E43: M/Ž 19 | F43: REKR | G43: OMIŠ | H43: DOM
A44: 33 | B44: BOŽAN LUKA | C44: M | D44: 2010 | E44: =IF(D44>2012,"M/Ž 12",IF(D44>2009,"M/Ž 15",IF(D44>2005,"M/Ž 19",IF(D44>1995,"M/Ž 29",IF(D44>1985,"M/Ž 39",IF(D44>1975,"M/Ž 49",IF(D44>1965,"M/Ž 59",IF(D44>1959,"M/Ž 65",IF(D44>1954,"M/Ž 70",IF(D44>1949,"M/Ž 75",IF(D44>1931,"M/Ž 75+",))))))))))) -> M/Ž 15 | F44: REKR | G44: ZAGREB | H44: =IF($G$12:$G$162="Omiš","DOM",) -> 0
A45: 34 | B45: LATINOVIĆ SRĐAN | C45: M | D45: 1988 | E45: M/Ž 39 | F45: REKR | G45: SPLIT | H45: 0
A46: 35 | B46: ŠOŠIĆ MARKO | C46: M | D46: 1985 | E46: M/Ž 49 | F46: REKR | G46: BRELA | H46: 0
A47: 36 | B47: JAKOVČIĆ FABJANA | C47: Ž | D47: 1975 | E47: M/Ž 59 | F47: REKR | G47: OMIŠ | H47: DOM
A48: 37 | B48: JAKOVČIĆ ROZA | C48: Ž | D48: 2012 | E48: M/Ž 15 | F48: REKR | G48: OMIŠ | H48: DOM
A49: 38 | B49: BOBANOVIĆ PETAR | C49: M | D49: 2015 | E49: M/Ž 12 | F49: REKR | G49: SPLIT | H49: 0
A50: 39 | B50: BOBANOVIĆ NIKO | C50: M | D50: 2012 | E50: M/Ž 15 | F50: REKR | G50: SPLIT | H50: 0
A51: 40 | B51: BOBANOVIĆ HRVOJE | C51: M | D51: 1979 | E51: M/Ž 49 | F51: REKR | G51: SPLIT | H51: 0
A52: 41 | B52: PERICA ŠINKA | C52: Ž | D52: 1966 | E52: M/Ž 59 | F52: REKR | G52: OMIŠ | H52: DOM
A53: 42 | B53: BOBAN HRVOJE | C53: M | D53: 1976 | E53: M/Ž 49 | F53: REKR | G53: SPLIT | H53: 0
A54: 43 | B54: BAŠIĆ VEDRAN | C54: M | D54: 1975 | E54: M/Ž 59 | F54: REKR | G54: SPLIT | H54: 0
A55: 44 | B55: GABELLINI DIEGO | C55: M | D55: 2013 | E55: M/Ž 12 | F55: REKR | G55: ITALIJA | H55: 0
A56: 45 | B56: MANDUŠIĆ IGOR | C56: M | D56: 1974 | E56: M/Ž 59 | F56: REKR | G56: TROGIR | H56: 0
A57: 46 | B57: MEKINIĆ PETAR | C57: M | D57: 2006 | E57: M/Ž 19 | F57: REKR | G57: OMIŠ | H57: DOM
A58: 47 | B58: ČAGALJ VICKO | C58: M | D58: 1993 | E58: M/Ž 39 | F58: REKR | G58: ZAGREB | H58: 0
A59: 48 | B59: TOMAŠ RADOSLAV | C59: M | D59: 1951 | E59: M/Ž 75 | F59: REKR | G59: ZAGREB | H59: 0
A60: 49 | B60: PULIĆ JOŠKO | C60: M | D60: 1981 | E60: M/Ž 49 | F60: REKR | G60: DUBROVNIK | H60: 0
A61: 50 | B61: PERAK MARIJA | C61: Ž | D61: 2012 | E61: M/Ž 15 | F61: REKR | G61: OMIŠ | H61: DOM
A62: 51 | B62: DRAGOŠEVIĆ ELA | C62: Ž | D62: 2012 | E62: M/Ž 15 | F62: REKR | G62: OMIŠ | H62: DOM
A63: 52 | B63: STANIĆ CVITA | C63: Ž | D63: 2011 | E63: M/Ž 15 | F63: REKR | G63: OMIŠ | H63: DOM
A64: 53 | B64: STANIĆ LEA | C64: Ž | D64: 2012 | E64: M/Ž 15 | F64: REKR | G64: OMIŠ | H64: DOM
A65: 54 | B65: BEBIĆ MIJO | C65: M | D65: 1978 | E65: M/Ž 49 | F65: REKR | G65: SPLIT | H65: 0
A66: 55 | B66: PIVČEVIĆ IVO | C66: M | D66: 1993 | E66: M/Ž 39 | F66: REKR | G66: OMIŠ | H66: DOM
A67: 56 | B67: MIMICA MIROSLAV | C67: M | D67: 1958 | E67: M/Ž 70 | F67: REKR | G67: DUGI RAT | H67: 0
A68: 57 | B68: ŠILJEG FILIPA | C68: Ž | D68: 2002 | E68: M/Ž 29 | F68: REKR | G68: SPLIT | H68: 0
B84: plivači IZVAN KONKURENCIJE
E86: KAT | F86: MJESTO | G86: REK / KL
A87: 2 | B87: VIDEKOVIĆ UNA | C87: Ž | D87: 2011 | E87: =IF(D87>2012,"M/Ž 12",IF(D87>2009,"M/Ž 15",IF(D87>2005,"M/Ž 19",IF(D87>1995,"M/Ž 29",IF(D87>1985,"M/Ž 39",IF(D87>1975,"M/Ž 49",IF(D87>1965,"M/Ž 59",IF(D87>1959,"M/Ž 65",IF(D87>1954,"M/Ž 70",IF(D87>1949,"M/Ž 75",IF(D87>1931,"M/Ž 75+",))))))))))) -> M/Ž 15 | F87: KLUB | G87: VINKOVCI | H87: =IF($G$12:$G$162="Omiš","DOM",) -> 0
A88: 10 | B88: RADNIĆ GEA | C88: Ž | D88: 2013 | E88: =IF(D88>2012,"M/Ž 12",IF(D88>2009,"M/Ž 15",IF(D88>2005,"M/Ž 19",IF(D88>1995,"M/Ž 29",IF(D88>1985,"M/Ž 39",IF(D88>1975,"M/Ž 49",IF(D88>1965,"M/Ž 59",IF(D88>1959,"M/Ž 65",IF(D88>1954,"M/Ž 70",IF(D88>1949,"M/Ž 75",IF(D88>1931,"M/Ž 75+",))))))))))) -> M/Ž 12 | F88: KLUB | G88: SPLIT | H88: =IF($G$12:$G$162="Omiš","DOM",) -> 0
A89: 17 | B89: BELOUSOVA MARIA | C89: Ž | D89: 2012 | E89: =IF(D89>2012,"M/Ž 12",IF(D89>2009,"M/Ž 15",IF(D89>2005,"M/Ž 19",IF(D89>1995,"M/Ž 29",IF(D89>1985,"M/Ž 39",IF(D89>1975,"M/Ž 49",IF(D89>1965,"M/Ž 59",IF(D89>1959,"M/Ž 65",IF(D89>1954,"M/Ž 70",IF(D89>1949,"M/Ž 75",IF(D89>1931,"M/Ž 75+",))))))))))) -> M/Ž 15 | F89: KLUB | G89: BRASINA | H89: =IF($G$12:$G$162="Omiš","DOM",) -> 0
A90: 25 | B90: BRATIĆ DAMIR | C90: M | D90: 2012 | E90: =IF(D90>2012,"M/Ž 12",IF(D90>2009,"M/Ž 15",IF(D90>2005,"M/Ž 19",IF(D90>1995,"M/Ž 29",IF(D90>1985,"M/Ž 39",IF(D90>1975,"M/Ž 49",IF(D90>1965,"M/Ž 59",IF(D90>1959,"M/Ž 65",IF(D90>1954,"M/Ž 70",IF(D90>1949,"M/Ž 75",IF(D90>1931,"M/Ž 75+",))))))))))) -> M/Ž 15 | F90: KLUB | G90: SPLIT | H90: =IF($G$12:$G$162="Omiš","DOM",) -> 0
B96: PODACI O PLIVAČIMA
B98: 1501 metar | H98: Omiš, 23. 8. 2025.
B100: UKUPNO PLIVAČA: | C100: =COUNTA(B12:B77) -> 57
B101: UKUPNO MUŠKI: | C101: =COUNTIF(C12:C77,"M") -> 36
B102: UKUPNO ŽENSKE: | C102: =COUNTIF(C12:C77,"Ž") -> 21
B105: DOMAĆI PLIVAČI: | F105: UK | G105: M | H105: Ž
F106: =COUNTIF(H12:H77,"DOM") -> 12 | G106: =SUMPRODUCT(--($C$12:$C$77="M"),--($H$12:$H$77="DOM")) -> 4 | H106: =SUMPRODUCT(--($C$12:$C$77="Ž"),--($H$12:$H$77="DOM")) -> 8
B108: KATEGORIJE:
C109: UK | D109: M | E109: Ž
B110: M/Ž 12 : | C110: =COUNTIF($E$12:$E$77,"M/Ž 12") -> 5 | D110: =SUMPRODUCT(--($E$12:$E$77="M/Ž 12"),--($C$12:$C$77="M")) -> 4 | E110: =SUMPRODUCT(--($E$12:$E$77="M/Ž 12"),--($C$12:$C$77="Ž")) -> 1
B111: M/Ž 15 : | C111: =COUNTIF($E$12:$E$77,"M/Ž 15") -> 12 | D111: =SUMPRODUCT(--($E$12:$E$77="M/Ž 15"),--($C$12:$C$77="M")) -> 3 | E111: =SUMPRODUCT(--($E$12:$E$77="M/Ž 15"),--($C$12:$C$77="Ž")) -> 9
B112: M/Ž 19 : | C112: =COUNTIF($E$12:$E$77,"M/Ž 19") -> 3 | D112: =SUMPRODUCT(--($E$12:$E$77="M/Ž 19"),--($C$12:$C$77="M")) -> 2 | E112: =SUMPRODUCT(--($E$12:$E$77="M/Ž 19"),--($C$12:$C$77="Ž")) -> 1
B113: M/Ž 20-29 : | C113: =COUNTIF($E$12:$E$77,"M/Ž 29") -> 2 | D113: =SUMPRODUCT(--($E$12:$E$77="M/Ž 29"),--($C$12:$C$77="M")) -> 0 | E113: =SUMPRODUCT(--($E$12:$E$77="M/Ž 29"),--($C$12:$C$77="Ž")) -> 2
B114: M/Ž 30-39 : | C114: =COUNTIF($E$12:$E$77,"M/Ž 39") -> 6 | D114: =SUMPRODUCT(--($E$12:$E$77="M/Ž 39"),--($C$12:$C$77="M")) -> 4 | E114: =SUMPRODUCT(--($E$12:$E$77="M/Ž 39"),--($C$12:$C$77="Ž")) -> 2
B115: M/Ž 40-49 : | C115: =COUNTIF($E$12:$E$77,"M/Ž 49") -> 11 | D115: =SUMPRODUCT(--($E$12:$E$77="M/Ž 49"),--($C$12:$C$77="M")) -> 9 | E115: =SUMPRODUCT(--($E$12:$E$77="M/Ž 49"),--($C$12:$C$77="Ž")) -> 2
B116: M/Ž 50-59 : | C116: =COUNTIF($E$12:$E$77,"M/Ž 59") -> 8 | D116: =SUMPRODUCT(--($E$12:$E$77="M/Ž 59"),--($C$12:$C$77="M")) -> 5 | E116: =SUMPRODUCT(--($E$12:$E$77="M/Ž 59"),--($C$12:$C$77="Ž")) -> 3
B117: M/Ž 60-65 : | C117: =COUNTIF($E$12:$E$77,"M/Ž 65") -> 4 | D117: =SUMPRODUCT(--($E$12:$E$77="M/Ž 65"),--($C$12:$C$77="M")) -> 3 | E117: =SUMPRODUCT(--($E$12:$E$77="M/Ž 65"),--($C$12:$C$77="Ž")) -> 1
B118: M/Ž 66-70 : | C118: =COUNTIF($E$12:$E$77,"M/Ž 70") -> 2 | D118: =SUMPRODUCT(--($E$12:$E$77="M/Ž 70"),--($C$12:$C$77="M")) -> 2 | E118: =SUMPRODUCT(--($E$12:$E$77="M/Ž 70"),--($C$12:$C$77="Ž")) -> 0
B119: M/Ž 70-75 : | C119: =COUNTIF($E$12:$E$77,"M/Ž 75") -> 4 | D119: =SUMPRODUCT(--($E$12:$E$77="M/Ž 75"),--($C$12:$C$77="M")) -> 4 | E119: =SUMPRODUCT(--($E$12:$E$77="M/Ž 75"),--($C$12:$C$77="Ž")) -> 0
B120: M/Ž 75+ : | C120: =COUNTIF($E$12:$E$77,"M/Ž 75+") -> 0 | D120: =SUMPRODUCT(--($E$12:$E$77="M/Ž 75+"),--($C$12:$C$77="M")) -> 0 | E120: =SUMPRODUCT(--($E$12:$E$77="M/Ž 75+"),--($C$12:$C$77="Ž")) -> 0
B123: PLIVAČI IZVAN KONKURENCIJE: | F123: 4
A125: NAJSTARIJI PLIVAČ :
A127: 5 | B127: KAČIĆ ZORAN | C127: M | D127: 1950 | E127: =IF(D127>2012,"M/Ž 12",IF(D127>2009,"M/Ž 15",IF(D127>2005,"M/Ž 19",IF(D127>1995,"M/Ž 29",IF(D127>1985,"M/Ž 39",IF(D127>1975,"M/Ž 49",IF(D127>1965,"M/Ž 59",IF(D127>1959,"M/Ž 65",IF(D127>1954,"M/Ž 70",IF(D127>1949,"M/Ž 75",IF(D127>1931,"M/Ž 75+",))))))))))) -> M/Ž 75 | F127: REKR | G127: SPLIT
A130: NAJSTARIJA PLIVAČICA :
A132: 8 | B132: VERINA MARIA | C132: Ž | D132: 1965 | E132: =IF(D132>2012,"M/Ž 12",IF(D132>2009,"M/Ž 15",IF(D132>2005,"M/Ž 19",IF(D132>1995,"M/Ž 29",IF(D132>1985,"M/Ž 39",IF(D132>1975,"M/Ž 49",IF(D132>1965,"M/Ž 59",IF(D132>1959,"M/Ž 65",IF(D132>1954,"M/Ž 70",IF(D132>1949,"M/Ž 75",IF(D132>1931,"M/Ž 75+",))))))))))) -> M/Ž 65 | F132: REKR | G132: SUTIVAN
A135: NAJMLAĐI PLIVAČ :
A137: 11 | B137: BRKOVIĆ MARIN | C137: M | D137: 2015 | E137: =IF(D137>2012,"M/Ž 12",IF(D137>2009,"M/Ž 15",IF(D137>2005,"M/Ž 19",IF(D137>1995,"M/Ž 29",IF(D137>1985,"M/Ž 39",IF(D137>1975,"M/Ž 49",IF(D137>1965,"M/Ž 59",IF(D137>1959,"M/Ž 65",IF(D137>1954,"M/Ž 70",IF(D137>1949,"M/Ž 75",IF(D137>1931,"M/Ž 75+",))))))))))) -> M/Ž 12 | F137: KLUB | G137: SPLIT
A140: NAJMLAĐA PLIVAČICA :
A142: 10 | B142: RADNIĆ GEA | C142: Ž | D142: 2013 | E142: =IF(D142>2012,"M/Ž 12",IF(D142>2009,"M/Ž 15",IF(D142>2005,"M/Ž 19",IF(D142>1995,"M/Ž 29",IF(D142>1985,"M/Ž 39",IF(D142>1975,"M/Ž 49",IF(D142>1965,"M/Ž 59",IF(D142>1959,"M/Ž 65",IF(D142>1954,"M/Ž 70",IF(D142>1949,"M/Ž 75",IF(D142>1931,"M/Ž 75+",))))))))))) -> M/Ž 12 | F142: KLUB | G142: =VLOOKUP(A142,STARTNA!$A$12:$H$96,6,) -> KLUB
B145: PODACI O UVJETIMA NA STAZI:
B147: Temperatura zraka: | C147: 31°
B148: Temperatura mora: | C148: 24°
B149: Snaga mora: | C149: 0
B150: Smjer vjetra: | C150: 0
B151: Jačina vjetra: | C151: 0

Sheet ciljna nesl
A5: 299 OTVORENO PRVENSTVO DALMACIJE U DALJINSKOM PLIVANJU - OMIŠ 2022. | N5: 1. Lozinka "h" je stalno aktivna
N6: 2. Upisivati startne brojeve s ramena u stupac B prema postignutom rangu
B7: dionica - 1501 metar | F7: Omiš, 20. 8. 2022. | N7: 3. U novi red prelaziti s TAB
N8: 4. Skinuti zaštitu i u stupac „I” upisati rezultate na način XX,XX (28,57)
C9: neslužbena CILJNA LISTA
N10: 5. Po upisu zadnjeg rezultata snimiti podatke
A11: rang | B11: ST. BR | C11: PREZIME I IME | D11: S | E11: GOD | F11: KAT | G11: klub/rekr | H11: MJESTO | I11: rez | J11: DOM | K11: IK | N11: 6. Kopirati podatke od stupca B – K i zalijepiti u CILJNU služb.
A12: 1 | B12: 32 | C12: =VLOOKUP(B12,STARTNA!$A$12:$H$96,2,) -> TAFRA MATE | D12: =VLOOKUP(B12,STARTNA!$A$12:$H$96,3,) -> M | E12: =VLOOKUP(B12,STARTNA!$A$12:$H$96,4,) -> 2009 | F12: =VLOOKUP(B12,STARTNA!$A$12:$H$96,5,) -> M/Ž 19 | G12: =VLOOKUP(B12,STARTNA!$A$12:$H$96,6,) -> REKR | H12: =VLOOKUP(B12,STARTNA!$A$12:$H$96,7,) -> OMIŠ | I12: 18.11 | J12: =IF($H$12:$H$98="Omiš","DOM",) -> DOM | K12: =AND(E12<2014,G12="KLUB") -> FALSE | N12: 7. Zaštititi list
A13: 2 | B13: 25 | C13: BRATIĆ DAMIR | D13: M | E13: 2012 | F13: =IF(E13>2012,"M/Ž 12",IF(E13>2009,"M/Ž 15",IF(E13>2005,"M/Ž 19",IF(E13>1995,"M/Ž 29",IF(E13>1985,"M/Ž 39",IF(E13>1975,"M/Ž 49",IF(E13>1965,"M/Ž 59",IF(E13>1959,"M/Ž 65",IF(E13>1954,"M/Ž 70",IF(E13>1949,"M/Ž 75",IF(E13>1931,"M/Ž 75+",))))))))))) -> M/Ž 15 | G13: REKR | H13: SPLIT | I13: 18.49 | J13: 0 | K13: 1
A14: 3 | B14: 34 | C14: =VLOOKUP(B14,STARTNA!$A$12:$H$96,2,) -> LATINOVIĆ SRĐAN | D14: =VLOOKUP(B14,STARTNA!$A$12:$H$96,3,) -> M | E14: =VLOOKUP(B14,STARTNA!$A$12:$H$96,4,) -> 1988 | F14: =VLOOKUP(B14,STARTNA!$A$12:$H$96,5,) -> M/Ž 39 | G14: =VLOOKUP(B14,STARTNA!$A$12:$H$96,6,) -> REKR | H14: =VLOOKUP(B14,STARTNA!$A$12:$H$96,7,) -> SPLIT | I14: 19.11 | J14: 0 | K14: FALSE
A15: 4 | B15: 29 | C15: =VLOOKUP(B15,STARTNA!$A$12:$H$96,2,) -> STOJANOVIĆ MIHOVIL | D15: =VLOOKUP(B15,STARTNA!$A$12:$H$96,3,) -> M | E15: =VLOOKUP(B15,STARTNA!$A$12:$H$96,4,) -> 1985 | F15: =VLOOKUP(B15,STARTNA!$A$12:$H$96,5,) -> M/Ž 49 | G15: =VLOOKUP(B15,STARTNA!$A$12:$H$96,6,) -> REKR | H15: =VLOOKUP(B15,STARTNA!$A$12:$H$96,7,) -> DRNIŠ | I15: 19.16 | J15: 0 | K15: FALSE
A16: 5 | B16: 39 | C16: =VLOOKUP(B16,STARTNA!$A$12:$H$96,2,) -> BOBANOVIĆ NIKO | D16: =VLOOKUP(B16,STARTNA!$A$12:$H$96,3,) -> M | E16: =VLOOKUP(B16,STARTNA!$A$12:$H$96,4,) -> 2012 | F16: =VLOOKUP(B16,STARTNA!$A$12:$H$96,5,) -> M/Ž 15 | G16: =VLOOKUP(B16,STARTNA!$A$12:$H$96,6,) -> REKR | H16: =VLOOKUP(B16,STARTNA!$A$12:$H$96,7,) -> SPLIT | I16: 20.03 | J16: 0 | K16: FALSE
A17: 6 | B17: 31 | C17: =VLOOKUP(B17,STARTNA!$A$12:$H$96,2,) -> GALIĆ PETRA | D17: =VLOOKUP(B17,STARTNA!$A$12:$H$96,3,) -> Ž | E17: =VLOOKUP(B17,STARTNA!$A$12:$H$96,4,) -> 2010 | F17: =VLOOKUP(B17,STARTNA!$A$12:$H$96,5,) -> M/Ž 15 | G17: =VLOOKUP(B17,STARTNA!$A$12:$H$96,6,) -> REKR | H17: =VLOOKUP(B17,STARTNA!$A$12:$H$96,7,) -> SPLIT | I17: 20.16 | J17: 0 | K17: FALSE
A18: 7 | B18: 23 | C18: =VLOOKUP(B18,STARTNA!$A$12:$H$96,2,) -> KUNDID IGOR | D18: =VLOOKUP(B18,STARTNA!$A$12:$H$96,3,) -> M | E18: =VLOOKUP(B18,STARTNA!$A$12:$H$96,4,) -> 1981 | F18: =VLOOKUP(B18,STARTNA!$A$12:$H$96,5,) -> M/Ž 49 | G18: =VLOOKUP(B18,STARTNA!$A$12:$H$96,6,) -> REKR | H18: =VLOOKUP(B18,STARTNA!$A$12:$H$96,7,) -> STOBREČ | I18: 20.34 | J18: 0 | K18: FALSE
A19: 8 | B19: 44 | C19: =VLOOKUP(B19,STARTNA!$A$12:$H$96,2,) -> GABELLINI DIEGO | D19: =VLOOKUP(B19,STARTNA!$A$12:$H$96,3,) -> M | E19: =VLOOKUP(B19,STARTNA!$A$12:$H$96,4,) -> 2013 | F19: =VLOOKUP(B19,STARTNA!$A$12:$H$96,5,) -> M/Ž 12 | G19: =VLOOKUP(B19,STARTNA!$A$12:$H$96,6,) -> REKR | H19: =VLOOKUP(B19,STARTNA!$A$12:$H$96,7,) -> ITALIJA | I19: 20.45 | J19: 0 | K19: FALSE
A20: 9 | B20: 2 | C20: =VLOOKUP(B20,STARTNA!$A$12:$H$96,2,) -> VIDEKOVIĆ UNA | D20: =VLOOKUP(B20,STARTNA!$A$12:$H$96,3,) -> Ž | E20: =VLOOKUP(B20,STARTNA!$A$12:$H$96,4,) -> 2011 | F20: =VLOOKUP(B20,STARTNA!$A$12:$H$96,5,) -> M/Ž 15 | G20: =VLOOKUP(B20,STARTNA!$A$12:$H$96,6,) -> KLUB | H20: =VLOOKUP(B20,STARTNA!$A$12:$H$96,7,) -> VINKOVCI | I20: 20.51 | J20: 0 | K20: 1
A21: 10 | B21: 28 | C21: =VLOOKUP(B21,STARTNA!$A$12:$H$96,2,) -> ZEKANOVIĆ MIA | D21: =VLOOKUP(B21,STARTNA!$A$12:$H$96,3,) -> Ž | E21: =VLOOKUP(B21,STARTNA!$A$12:$H$96,4,) -> 2010 | F21: =VLOOKUP(B21,STARTNA!$A$12:$H$96,5,) -> M/Ž 15 | G21: =VLOOKUP(B21,STARTNA!$A$12:$H$96,6,) -> REKR | H21: =VLOOKUP(B21,STARTNA!$A$12:$H$96,7,) -> ZADAR | I21: 20.58 | J21: 0 | K21: =AND(E21<2014,G21="KLUB") -> FALSE
A22: 11 | B22: 37 | C22: =VLOOKUP(B22,STARTNA!$A$12:$H$96,2,) -> JAKOVČIĆ ROZA | D22: =VLOOKUP(B22,STARTNA!$A$12:$H$96,3,) -> Ž | E22: =VLOOKUP(B22,STARTNA!$A$12:$H$96,4,) -> 2012 | F22: =VLOOKUP(B22,STARTNA!$A$12:$H$96,5,) -> M/Ž 15 | G22: =VLOOKUP(B22,STARTNA!$A$12:$H$96,6,) -> REKR | H22: =VLOOKUP(B22,STARTNA!$A$12:$H$96,7,) -> OMIŠ | I22: 21.02 | J22: DOM | K22: =AND(E22<2014,G22="KLUB") -> FALSE
A23: 12 | B23: 10 | C23: =VLOOKUP(B23,STARTNA!$A$12:$H$96,2,) -> RADNIĆ GEA | D23: =VLOOKUP(B23,STARTNA!$A$12:$H$96,3,) -> Ž | E23: =VLOOKUP(B23,STARTNA!$A$12:$H$96,4,) -> 2013 | F23: =VLOOKUP(B23,STARTNA!$A$12:$H$96,5,) -> M/Ž 12 | G23: =VLOOKUP(B23,STARTNA!$A$12:$H$96,6,) -> KLUB | H23: =VLOOKUP(B23,STARTNA!$A$12:$H$96,7,) -> SPLIT | I23: 21.08 | J23: 0 | K23: 1
A24: 13 | B24: 30 | C24: =VLOOKUP(B24,STARTNA!$A$12:$H$96,2,) -> BRZOVIĆ ANA | D24: =VLOOKUP(B24,STARTNA!$A$12:$H$96,3,) -> Ž | E24: =VLOOKUP(B24,STARTNA!$A$12:$H$96,4,) -> 2008 | F24: =VLOOKUP(B24,STARTNA!$A$12:$H$96,5,) -> M/Ž 19 | G24: =VLOOKUP(B24,STARTNA!$A$12:$H$96,6,) -> REKR | H24: =VLOOKUP(B24,STARTNA!$A$12:$H$96,7,) -> OMIŠ | I24: 21.13 | J24: DOM | K24: =AND(E24<2014,G24="KLUB") -> FALSE
A25: 14 | B25: 54 | C25: =VLOOKUP(B25,STARTNA!$A$12:$H$96,2,) -> BEBIĆ MIJO | D25: =VLOOKUP(B25,STARTNA!$A$12:$H$96,3,) -> M | E25: =VLOOKUP(B25,STARTNA!$A$12:$H$96,4,) -> 1978 | F25: =VLOOKUP(B25,STARTNA!$A$12:$H$96,5,) -> M/Ž 49 | G25: =VLOOKUP(B25,STARTNA!$A$12:$H$96,6,) -> REKR | H25: =VLOOKUP(B25,STARTNA!$A$12:$H$96,7,) -> SPLIT | I25: 21.17 | J25: 0 | K25: FALSE
A26: 15 | B26: 33 | C26: =VLOOKUP(B26,STARTNA!$A$12:$H$96,2,) -> BOŽAN LUKA | D26: =VLOOKUP(B26,STARTNA!$A$12:$H$96,3,) -> M | E26: =VLOOKUP(B26,STARTNA!$A$12:$H$96,4,) -> 2010 | F26: =VLOOKUP(B26,STARTNA!$A$12:$H$96,5,) -> M/Ž 15 | G26: =VLOOKUP(B26,STARTNA!$A$12:$H$96,6,) -> REKR | H26: =VLOOKUP(B26,STARTNA!$A$12:$H$96,7,) -> ZAGREB | I26: 21 | J26: 0 | K26: FALSE
A27: 16 | B27: 1 | C27: =VLOOKUP(B27,STARTNA!$A$12:$H$96,2,) -> PRVAN BORKO | D27: =VLOOKUP(B27,STARTNA!$A$12:$H$96,3,) -> M | E27: =VLOOKUP(B27,STARTNA!$A$12:$H$96,4,) -> 1951 | F27: =VLOOKUP(B27,STARTNA!$A$12:$H$96,5,) -> M/Ž 75 | G27: =VLOOKUP(B27,STARTNA!$A$12:$H$96,6,) -> REKR | H27: =VLOOKUP(B27,STARTNA!$A$12:$H$96,7,) -> ZAGREB | I27: 21.51 | J27: 0 | K27: FALSE
A28: 17 | B28: 49 | C28: =VLOOKUP(B28,STARTNA!$A$12:$H$96,2,) -> PULIĆ JOŠKO | D28: =VLOOKUP(B28,STARTNA!$A$12:$H$96,3,) -> M | E28: =VLOOKUP(B28,STARTNA!$A$12:$H$96,4,) -> 1981 | F28: =VLOOKUP(B28,STARTNA!$A$12:$H$96,5,) -> M/Ž 49 | G28: =VLOOKUP(B28,STARTNA!$A$12:$H$96,6,) -> REKR | H28: =VLOOKUP(B28,STARTNA!$A$12:$H$96,7,) -> DUBROVNIK | I28: 22.11 | J28: 0 | K28: FALSE
A29: 18 | B29: 27 | C29: =VLOOKUP(B29,STARTNA!$A$12:$H$96,2,) -> GRUBIŠIĆ DRAGAN | D29: =VLOOKUP(B29,STARTNA!$A$12:$H$96,3,) -> M | E29: =VLOOKUP(B29,STARTNA!$A$12:$H$96,4,) -> 1968 | F29: =VLOOKUP(B29,STARTNA!$A$12:$H$96,5,) -> M/Ž 59 | G29: =VLOOKUP(B29,STARTNA!$A$12:$H$96,6,) -> REKR | H29: =VLOOKUP(B29,STARTNA!$A$12:$H$96,7,) -> ŠIBENIK | I29: 22.24 | J29: 0 | K29: FALSE
A30: 19 | B30: 11 | C30: =VLOOKUP(B30,STARTNA!$A$12:$H$96,2,) -> BRKOVIĆ MARIN | D30: =VLOOKUP(B30,STARTNA!$A$12:$H$96,3,) -> M | E30: =VLOOKUP(B30,STARTNA!$A$12:$H$96,4,) -> 2015 | F30: =VLOOKUP(B30,STARTNA!$A$12:$H$96,5,) -> M/Ž 12 | G30: =VLOOKUP(B30,STARTNA!$A$12:$H$96,6,) -> KLUB | H30: =VLOOKUP(B30,STARTNA!$A$12:$H$96,7,) -> SPLIT | I30: 25.09 | J30: 0 | K30: FALSE
A31: 20 | B31: 19 | C31: =VLOOKUP(B31,STARTNA!$A$12:$H$96,2,) -> GRGAT MARIJO | D31: =VLOOKUP(B31,STARTNA!$A$12:$H$96,3,) -> M | E31: =VLOOKUP(B31,STARTNA!$A$12:$H$96,4,) -> 1974 | F31: =VLOOKUP(B31,STARTNA!$A$12:$H$96,5,) -> M/Ž 59 | G31: =VLOOKUP(B31,STARTNA!$A$12:$H$96,6,) -> REKR | H31: =VLOOKUP(B31,STARTNA!$A$12:$H$96,7,) -> DUGI RAT | I31: 25.37 | J31: 0 | K31: FALSE
A32: 21 | B32: 45 | C32: =VLOOKUP(B32,STARTNA!$A$12:$H$96,2,) -> MANDUŠIĆ IGOR | D32: =VLOOKUP(B32,STARTNA!$A$12:$H$96,3,) -> M | E32: =VLOOKUP(B32,STARTNA!$A$12:$H$96,4,) -> 1974 | F32: =VLOOKUP(B32,STARTNA!$A$12:$H$96,5,) -> M/Ž 59 | G32: =VLOOKUP(B32,STARTNA!$A$12:$H$96,6,) -> REKR | H32: =VLOOKUP(B32,STARTNA!$A$12:$H$96,7,) -> TROGIR | I32: 25.46 | J32: 0 | K32: FALSE
A33: 22 | B33: 22 | C33: =VLOOKUP(B33,STARTNA!$A$12:$H$96,2,) -> BALIĆ ANTE | D33: =VLOOKUP(B33,STARTNA!$A$12:$H$96,3,) -> M | E33: =VLOOKUP(B33,STARTNA!$A$12:$H$96,4,) -> 1981 | F33: =VLOOKUP(B33,STARTNA!$A$12:$H$96,5,) -> M/Ž 49 | G33: =VLOOKUP(B33,STARTNA!$A$12:$H$96,6,) -> REKR | H33: =VLOOKUP(B33,STARTNA!$A$12:$H$96,7,) -> ZAGREB | I33: 25.5 | J33: 0 | K33: FALSE
A34: 23 | B34: 38 | C34: =VLOOKUP(B34,STARTNA!$A$12:$H$96,2,) -> BOBANOVIĆ PETAR | D34: =VLOOKUP(B34,STARTNA!$A$12:$H$96,3,) -> M | E34: =VLOOKUP(B34,STARTNA!$A$12:$H$96,4,) -> 2015 | F34: =VLOOKUP(B34,STARTNA!$A$12:$H$96,5,) -> M/Ž 12 | G34: =VLOOKUP(B34,STARTNA!$A$12:$H$96,6,) -> REKR | H34: =VLOOKUP(B34,STARTNA!$A$12:$H$96,7,) -> SPLIT | I34: 26.09 | J34: 0 | K34: FALSE
A35: 24 | B35: 40 | C35: =VLOOKUP(B35,STARTNA!$A$12:$H$96,2,) -> BOBANOVIĆ HRVOJE | D35: =VLOOKUP(B35,STARTNA!$A$12:$H$96,3,) -> M | E35: =VLOOKUP(B35,STARTNA!$A$12:$H$96,4,) -> 1979 | F35: =VLOOKUP(B35,STARTNA!$A$12:$H$96,5,) -> M/Ž 49 | G35: =VLOOKUP(B35,STARTNA!$A$12:$H$96,6,) -> REKR | H35: =VLOOKUP(B35,STARTNA!$A$12:$H$96,7,) -> SPLIT | I35: 26.12 | J35: 0 | K35: FALSE
A36: 25 | B36: 24 | C36: =VLOOKUP(B36,STARTNA!$A$12:$H$96,2,) -> KUNDID TONI | D36: =VLOOKUP(B36,STARTNA!$A$12:$H$96,3,) -> M | E36: =VLOOKUP(B36,STARTNA!$A$12:$H$96,4,) -> 2014 | F36: =VLOOKUP(B36,STARTNA!$A$12:$H$96,5,) -> M/Ž 12 | G36: =VLOOKUP(B36,STARTNA!$A$12:$H$96,6,) -> REKR | H36: =VLOOKUP(B36,STARTNA!$A$12:$H$96,7,) -> STOBREČ | I36: 26.2 | J36: 0 | K36: FALSE
A37: 26 | B37: 21 | C37: =VLOOKUP(B37,STARTNA!$A$12:$H$96,2,) -> ARAPOVIĆ ANA | D37: =VLOOKUP(B37,STARTNA!$A$12:$H$96,3,) -> Ž | E37: =VLOOKUP(B37,STARTNA!$A$12:$H$96,4,) -> 1982 | F37: =VLOOKUP(B37,STARTNA!$A$12:$H$96,5,) -> M/Ž 49 | G37: =VLOOKUP(B37,STARTNA!$A$12:$H$96,6,) -> REKR | H37: =VLOOKUP(B37,STARTNA!$A$12:$H$96,7,) -> SPLIT | I37: 26.3 | J37: 0 | K37: FALSE
A38: 27 | B38: 16 | C38: =VLOOKUP(B38,STARTNA!$A$12:$H$96,2,) -> BILANOVIĆ JURE | D38: =VLOOKUP(B38,STARTNA!$A$12:$H$96,3,) -> M | E38: =VLOOKUP(B38,STARTNA!$A$12:$H$96,4,) -> 1981 | F38: =VLOOKUP(B38,STARTNA!$A$12:$H$96,5,) -> M/Ž 49 | G38: =VLOOKUP(B38,STARTNA!$A$12:$H$96,6,) -> REKR | H38: =VLOOKUP(B38,STARTNA!$A$12:$H$96,7,) -> DUGI RAT | I38: 26.53 | J38: 0 | K38: FALSE
A39: 28 | B39: 47 | C39: =VLOOKUP(B39,STARTNA!$A$12:$H$96,2,) -> ČAGALJ VICKO | D39: =VLOOKUP(B39,STARTNA!$A$12:$H$96,3,) -> M | E39: =VLOOKUP(B39,STARTNA!$A$12:$H$96,4,) -> 1993 | F39: =VLOOKUP(B39,STARTNA!$A$12:$H$96,5,) -> M/Ž 39 | G39: =VLOOKUP(B39,STARTNA!$A$12:$H$96,6,) -> REKR | H39: =VLOOKUP(B39,STARTNA!$A$12:$H$96,7,) -> ZAGREB | I39: 27.2 | J39: 0 | K39: FALSE
A40: 29 | B40: 35 | C40: =VLOOKUP(B40,STARTNA!$A$12:$H$96,2,) -> ŠOŠIĆ MARKO | D40: =VLOOKUP(B40,STARTNA!$A$12:$H$96,3,) -> M | E40: =VLOOKUP(B40,STARTNA!$A$12:$H$96,4,) -> 1985 | F40: =VLOOKUP(B40,STARTNA!$A$12:$H$96,5,) -> M/Ž 49 | G40: =VLOOKUP(B40,STARTNA!$A$12:$H$96,6,) -> REKR | H40: =VLOOKUP(B40,STARTNA!$A$12:$H$96,7,) -> BRELA | I40: 27.21 | J40: 0 | K40: FALSE
A41: 30 | B41: 55 | C41: =VLOOKUP(B41,STARTNA!$A$12:$H$96,2,) -> PIVČEVIĆ IVO | D41: =VLOOKUP(B41,STARTNA!$A$12:$H$96,3,) -> M | E41: =VLOOKUP(B41,STARTNA!$A$12:$H$96,4,) -> 1993 | F41: =VLOOKUP(B41,STARTNA!$A$12:$H$96,5,) -> M/Ž 39 | G41: =VLOOKUP(B41,STARTNA!$A$12:$H$96,6,) -> REKR | H41: =VLOOKUP(B41,STARTNA!$A$12:$H$96,7,) -> OMIŠ | I41: 27.34 | J41: DOM | K41: FALSE
A42: 31 | B42: 18 | C42: =VLOOKUP(B42,STARTNA!$A$12:$H$96,2,) -> TOMIĆ ZORAN | D42: =VLOOKUP(B42,STARTNA!$A$12:$H$96,3,) -> M | E42: =VLOOKUP(B42,STARTNA!$A$12:$H$96,4,) -> 1974 | F42: =VLOOKUP(B42,STARTNA!$A$12:$H$96,5,) -> M/Ž 59 | G42: =VLOOKUP(B42,STARTNA!$A$12:$H$96,6,) -> REKR | H42: =VLOOKUP(B42,STARTNA!$A$12:$H$96,7,) -> SPLIT | I42: 27.38 | J42: 0 | K42: FALSE
A43: 32 | B43: 9 | C43: =VLOOKUP(B43,STARTNA!$A$12:$H$96,2,) -> KNEŽEVIĆ FILIP | D43: =VLOOKUP(B43,STARTNA!$A$12:$H$96,3,) -> M | E43: =VLOOKUP(B43,STARTNA!$A$12:$H$96,4,) -> 1995 | F43: =VLOOKUP(B43,STARTNA!$A$12:$H$96,5,) -> M/Ž 39 | G43: =VLOOKUP(B43,STARTNA!$A$12:$H$96,6,) -> REKR | H43: =VLOOKUP(B43,STARTNA!$A$12:$H$96,7,) -> ŠIBENIK | I43: 27.45 | J43: 0 | K43: FALSE
A44: 33 | B44: 52 | C44: =VLOOKUP(B44,STARTNA!$A$12:$H$96,2,) -> STANIĆ CVITA | D44: =VLOOKUP(B44,STARTNA!$A$12:$H$96,3,) -> Ž | E44: =VLOOKUP(B44,STARTNA!$A$12:$H$96,4,) -> 2011 | F44: =VLOOKUP(B44,STARTNA!$A$12:$H$96,5,) -> M/Ž 15 | G44: =VLOOKUP(B44,STARTNA!$A$12:$H$96,6,) -> REKR | H44: =VLOOKUP(B44,STARTNA!$A$12:$H$96,7,) -> OMIŠ | I44: 27.46 | J44: =IF($H$12:$H$98="Omiš","DOM",) -> DOM | K44: FALSE
A45: 34 | B45: 7 | C45: =VLOOKUP(B45,STARTNA!$A$12:$H$96,2,) -> KEKEZ ANTE | D45: =VLOOKUP(B45,STARTNA!$A$12:$H$96,3,) -> M | E45: =VLOOKUP(B45,STARTNA!$A$12:$H$96,4,) -> 1950 | F45: =VLOOKUP(B45,STARTNA!$A$12:$H$96,5,) -> M/Ž 75 | G45: =VLOOKUP(B45,STARTNA!$A$12:$H$96,6,) -> REKR | H45: =VLOOKUP(B45,STARTNA!$A$12:$H$96,7,) -> OMIŠ | I45: 27.48 | J45: DOM | K45: FALSE
A46: 35 | B46: 50 | C46: =VLOOKUP(B46,STARTNA!$A$12:$H$96,2,) -> PERAK MARIJA | D46: =VLOOKUP(B46,STARTNA!$A$12:$H$96,3,) -> Ž | E46: =VLOOKUP(B46,STARTNA!$A$12:$H$96,4,) -> 2012 | F46: =VLOOKUP(B46,STARTNA!$A$12:$H$96,5,) -> M/Ž 15 | G46: =VLOOKUP(B46,STARTNA!$A$12:$H$96,6,) -> REKR | H46: =VLOOKUP(B46,STARTNA!$A$12:$H$96,7,) -> OMIŠ | I46: 27.51 | J46: DOM | K46: FALSE
A47: 36 | B47: 5 | C47: =VLOOKUP(B47,STARTNA!$A$12:$H$96,2,) -> KAČIĆ ZORAN | D47: =VLOOKUP(B47,STARTNA!$A$12:$H$96,3,) -> M | E47: =VLOOKUP(B47,STARTNA!$A$12:$H$96,4,) -> 1950 | F47: =VLOOKUP(B47,STARTNA!$A$12:$H$96,5,) -> M/Ž 75 | G47: =VLOOKUP(B47,STARTNA!$A$12:$H$96,6,) -> REKR | H47: =VLOOKUP(B47,STARTNA!$A$12:$H$96,7,) -> SPLIT | I47: 28.16 | J47: 0 | K47: FALSE
A48: 37 | B48: 43 | C48: =VLOOKUP(B48,STARTNA!$A$12:$H$96,2,) -> BAŠIĆ VEDRAN | D48: =VLOOKUP(B48,STARTNA!$A$12:$H$96,3,) -> M | E48: =VLOOKUP(B48,STARTNA!$A$12:$H$96,4,) -> 1975 | F48: =VLOOKUP(B48,STARTNA!$A$12:$H$96,5,) -> M/Ž 59 | G48: =VLOOKUP(B48,STARTNA!$A$12:$H$96,6,) -> REKR | H48: =VLOOKUP(B48,STARTNA!$A$12:$H$96,7,) -> SPLIT | I48: 28.24 | J48: 0 | K48: FALSE
A49: 38 | B49: 53 | C49: =VLOOKUP(B49,STARTNA!$A$12:$H$96,2,) -> STANIĆ LEA | D49: =VLOOKUP(B49,STARTNA!$A$12:$H$96,3,) -> Ž | E49: =VLOOKUP(B49,STARTNA!$A$12:$H$96,4,) -> 2012 | F49: =VLOOKUP(B49,STARTNA!$A$12:$H$96,5,) -> M/Ž 15 | G49: =VLOOKUP(B49,STARTNA!$A$12:$H$96,6,) -> REKR | H49: =VLOOKUP(B49,STARTNA!$A$12:$H$96,7,) -> OMIŠ | I49: 29.05 | J49: DOM | K49: FALSE
A50: 39 | B50: 46 | C50: =VLOOKUP(B50,STARTNA!$A$12:$H$96,2,) -> MEKINIĆ PETAR | D50: =VLOOKUP(B50,STARTNA!$A$12:$H$96,3,) -> M | E50: =VLOOKUP(B50,STARTNA!$A$12:$H$96,4,) -> 2006 | F50: =VLOOKUP(B50,STARTNA!$A$12:$H$96,5,) -> M/Ž 19 | G50: =VLOOKUP(B50,STARTNA!$A$12:$H$96,6,) -> REKR | H50: =VLOOKUP(B50,STARTNA!$A$12:$H$96,7,) -> OMIŠ | I50: 29.27 | J50: DOM | K50: FALSE
A51: 40 | B51: 51 | C51: =VLOOKUP(B51,STARTNA!$A$12:$H$96,2,) -> DRAGOŠEVIĆ ELA | D51: =VLOOKUP(B51,STARTNA!$A$12:$H$96,3,) -> Ž | E51: =VLOOKUP(B51,STARTNA!$A$12:$H$96,4,) -> 2012 | F51: =VLOOKUP(B51,STARTNA!$A$12:$H$96,5,) -> M/Ž 15 | G51: =VLOOKUP(B51,STARTNA!$A$12:$H$96,6,) -> REKR | H51: =VLOOKUP(B51,STARTNA!$A$12:$H$96,7,) -> OMIŠ | I51: 29.34 | J51: DOM | K51: FALSE
A52: 41 | B52: 26 | C52: =VLOOKUP(B52,STARTNA!$A$12:$H$96,2,) -> GRUBIŠIĆ INES | D52: =VLOOKUP(B52,STARTNA!$A$12:$H$96,3,) -> Ž | E52: =VLOOKUP(B52,STARTNA!$A$12:$H$96,4,) -> 1995 | F52: =VLOOKUP(B52,STARTNA!$A$12:$H$96,5,) -> M/Ž 39 | G52: =VLOOKUP(B52,STARTNA!$A$12:$H$96,6,) -> REKR | H52: =VLOOKUP(B52,STARTNA!$A$12:$H$96,7,) -> ZAGREB | I52: 29.41 | J52: 0 | K52: FALSE
A53: 42 | B53: 15 | C53: =VLOOKUP(B53,STARTNA!$A$12:$H$96,2,) -> LIPNJAK TAMARA | D53: =VLOOKUP(B53,STARTNA!$A$12:$H$96,3,) -> Ž | E53: =VLOOKUP(B53,STARTNA!$A$12:$H$96,4,) -> 1992 | F53: =VLOOKUP(B53,STARTNA!$A$12:$H$96,5,) -> M/Ž 39 | G53: =VLOOKUP(B53,STARTNA!$A$12:$H$96,6,) -> REKR | H53: =VLOOKUP(B53,STARTNA!$A$12:$H$96,7,) -> ZAGREB | I53: 31.19 | J53: 0 | K53: FALSE
A54: 43 | B54: 6 | C54: =VLOOKUP(B54,STARTNA!$A$12:$H$96,2,) -> KAČIĆ DUPLANČIĆ DIANA | D54: =VLOOKUP(B54,STARTNA!$A$12:$H$96,3,) -> Ž | E54: =VLOOKUP(B54,STARTNA!$A$12:$H$96,4,) -> 1978 | F54: =VLOOKUP(B54,STARTNA!$A$12:$H$96,5,) -> M/Ž 49 | G54: =VLOOKUP(B54,STARTNA!$A$12:$H$96,6,) -> REKR | H54: =VLOOKUP(B54,STARTNA!$A$12:$H$96,7,) -> SPLIT | I54: 31.33 | J54: 0 | K54: FALSE
A55: 44 | B55: 42 | C55: =VLOOKUP(B55,STARTNA!$A$12:$H$96,2,) -> BOBAN HRVOJE | D55: =VLOOKUP(B55,STARTNA!$A$12:$H$96,3,) -> M | E55: =VLOOKUP(B55,STARTNA!$A$12:$H$96,4,) -> 1976 | F55: =VLOOKUP(B55,STARTNA!$A$12:$H$96,5,) -> M/Ž 49 | G55: =VLOOKUP(B55,STARTNA!$A$12:$H$96,6,) -> REKR | H55: =VLOOKUP(B55,STARTNA!$A$12:$H$96,7,) -> SPLIT | I55: 31.47 | J55: 0 | K55: FALSE
A56: 45 | B56: 8 | C56: =VLOOKUP(B56,STARTNA!$A$12:$H$96,2,) -> VERINA MARIA | D56: =VLOOKUP(B56,STARTNA!$A$12:$H$96,3,) -> Ž | E56: =VLOOKUP(B56,STARTNA!$A$12:$H$96,4,) -> 1965 | F56: =VLOOKUP(B56,STARTNA!$A$12:$H$96,5,) -> M/Ž 65 | G56: =VLOOKUP(B56,STARTNA!$A$12:$H$96,6,) -> REKR | H56: =VLOOKUP(B56,STARTNA!$A$12:$H$96,7,) -> SUTIVAN | I56: 32.02 | J56: 0 | K56: FALSE
A57: 46 | B57: 17 | C57: =VLOOKUP(B57,STARTNA!$A$12:$H$96,2,) -> BELOUSOVA MARIA | D57: =VLOOKUP(B57,STARTNA!$A$12:$H$96,3,) -> Ž | E57: =VLOOKUP(B57,STARTNA!$A$12:$H$96,4,) -> 2012 | F57: =VLOOKUP(B57,STARTNA!$A$12:$H$96,5,) -> M/Ž 15 | G57: =VLOOKUP(B57,STARTNA!$A$12:$H$96,6,) -> KLUB | H57: =VLOOKUP(B57,STARTNA!$A$12:$H$96,7,) -> BRASINA | I57: 32.09 | J57: 0 | K57: 1
A58: 47 | B58: 20 | C58: =VLOOKUP(B58,STARTNA!$A$12:$H$96,2,) -> LUKIĆ ZITA | D58: =VLOOKUP(B58,STARTNA!$A$12:$H$96,3,) -> Ž | E58: =VLOOKUP(B58,STARTNA!$A$12:$H$96,4,) -> 2002 | F58: =VLOOKUP(B58,STARTNA!$A$12:$H$96,5,) -> M/Ž 29 | G58: =VLOOKUP(B58,STARTNA!$A$12:$H$96,6,) -> REKR | H58: =VLOOKUP(B58,STARTNA!$A$12:$H$96,7,) -> SPLIT | I58: 32.12 | J58: 0 | K58: =AND(E58<2014,G58="KLUB") -> FALSE
A59: 48 | B59: 36 | C59: =VLOOKUP(B59,STARTNA!$A$12:$H$96,2,) -> JAKOVČIĆ FABJANA | D59: =VLOOKUP(B59,STARTNA!$A$12:$H$96,3,) -> Ž | E59: =VLOOKUP(B59,STARTNA!$A$12:$H$96,4,) -> 1975 | F59: =VLOOKUP(B59,STARTNA!$A$12:$H$96,5,) -> M/Ž 59 | G59: =VLOOKUP(B59,STARTNA!$A$12:$H$96,6,) -> REKR | H59: =VLOOKUP(B59,STARTNA!$A$12:$H$96,7,) -> OMIŠ | I59: 32.25 | J59: DOM | K59: FALSE
A60: 49 | B60: 4 | C60: =VLOOKUP(B60,STARTNA!$A$12:$H$96,2,) -> ĆOSIĆ HRVOJE | D60: =VLOOKUP(B60,STARTNA!$A$12:$H$96,3,) -> M | E60: =VLOOKUP(B60,STARTNA!$A$12:$H$96,4,) -> 1959 | F60: =VLOOKUP(B60,STARTNA!$A$12:$H$96,5,) -> M/Ž 70 | G60: =VLOOKUP(B60,STARTNA!$A$12:$H$96,6,) -> REKR | H60: =VLOOKUP(B60,STARTNA!$A$12:$H$96,7,) -> BIH | I60: 34.07 | J60: 0 | K60: FALSE
A61: 50 | B61: 12 | C61: =VLOOKUP(B61,STARTNA!$A$12:$H$96,2,) -> DUMANIĆ NAĐAN | D61: =VLOOKUP(B61,STARTNA!$A$12:$H$96,3,) -> M | E61: =VLOOKUP(B61,STARTNA!$A$12:$H$96,4,) -> 1962 | F61: =VLOOKUP(B61,STARTNA!$A$12:$H$96,5,) -> M/Ž 65 | G61: =VLOOKUP(B61,STARTNA!$A$12:$H$96,6,) -> REKR | H61: =VLOOKUP(B61,STARTNA!$A$12:$H$96,7,) -> SPLIT | I61: 34.11 | J61: 0 | K61: FALSE
A62: 51 | B62: 14 | C62: =VLOOKUP(B62,STARTNA!$A$12:$H$96,2,) -> ŠUŠNJAR PJERA | D62: =VLOOKUP(B62,STARTNA!$A$12:$H$96,3,) -> Ž | E62: =VLOOKUP(B62,STARTNA!$A$12:$H$96,4,) -> 1967 | F62: =VLOOKUP(B62,STARTNA!$A$12:$H$96,5,) -> M/Ž 59 | G62: =VLOOKUP(B62,STARTNA!$A$12:$H$96,6,) -> REKR | H62: =VLOOKUP(B62,STARTNA!$A$12:$H$96,7,) -> SPLIT | I62: 34.45 | J62: 0 | K62: FALSE
A63: 52 | B63: 57 | C63: =VLOOKUP(B63,STARTNA!$A$12:$H$96,2,) -> ŠILJEG FILIPA | D63: =VLOOKUP(B63,STARTNA!$A$12:$H$96,3,) -> Ž | E63: =VLOOKUP(B63,STARTNA!$A$12:$H$96,4,) -> 2002 | F63: =VLOOKUP(B63,STARTNA!$A$12:$H$96,5,) -> M/Ž 29 | G63: =VLOOKUP(B63,STARTNA!$A$12:$H$96,6,) -> REKR | H63: =VLOOKUP(B63,STARTNA!$A$12:$H$96,7,) -> SPLIT | I63: 34.52 | J63: 0 | K63: FALSE
A64: 53 | B64: 3 | C64: =VLOOKUP(B64,STARTNA!$A$12:$H$96,2,) -> ŠKORIĆ JOSIP | D64: =VLOOKUP(B64,STARTNA!$A$12:$H$96,3,) -> M | E64: =VLOOKUP(B64,STARTNA!$A$12:$H$96,4,) -> 1960 | F64: =VLOOKUP(B64,STARTNA!$A$12:$H$96,5,) -> M/Ž 65 | G64: =VLOOKUP(B64,STARTNA!$A$12:$H$96,6,) -> REKR | H64: =VLOOKUP(B64,STARTNA!$A$12:$H$96,7,) -> BIH | I64: 35.04 | J64: 0 | K64: FALSE
A65: 54 | B65: 48 | C65: =VLOOKUP(B65,STARTNA!$A$12:$H$96,2,) -> TOMAŠ RADOSLAV | D65: =VLOOKUP(B65,STARTNA!$A$12:$H$96,3,) -> M | E65: =VLOOKUP(B65,STARTNA!$A$12:$H$96,4,) -> 1951 | F65: =VLOOKUP(B65,STARTNA!$A$12:$H$96,5,) -> M/Ž 75 | G65: =VLOOKUP(B65,STARTNA!$A$12:$H$96,6,) -> REKR | H65: =VLOOKUP(B65,STARTNA!$A$12:$H$96,7,) -> ZAGREB | I65: 36.07 | J65: 0 | K65: FALSE
A66: 55 | B66: 13 | C66: =VLOOKUP(B66,STARTNA!$A$12:$H$96,2,) -> ŠUŠNJAR MARIN | D66: =VLOOKUP(B66,STARTNA!$A$12:$H$96,3,) -> M | E66: =VLOOKUP(B66,STARTNA!$A$12:$H$96,4,) -> 1961 | F66: =VLOOKUP(B66,STARTNA!$A$12:$H$96,5,) -> M/Ž 65 | G66: =VLOOKUP(B66,STARTNA!$A$12:$H$96,6,) -> REKR | H66: =VLOOKUP(B66,STARTNA!$A$12:$H$96,7,) -> SPLIT | I66: 37.29 | J66: 0 | K66: FALSE
A67: 56 | B67: 41 | C67: =VLOOKUP(B67,STARTNA!$A$12:$H$96,2,) -> PERICA ŠINKA | D67: =VLOOKUP(B67,STARTNA!$A$12:$H$96,3,) -> Ž | E67: =VLOOKUP(B67,STARTNA!$A$12:$H$96,4,) -> 1966 | F67: =VLOOKUP(B67,STARTNA!$A$12:$H$96,5,) -> M/Ž 59 | G67: =VLOOKUP(B67,STARTNA!$A$12:$H$96,6,) -> REKR | H67: =VLOOKUP(B67,STARTNA!$A$12:$H$96,7,) -> OMIŠ | I67: 39.44 | J67: DOM | K67: FALSE
A68: 57 | B68: 56 | C68: =VLOOKUP(B68,STARTNA!$A$12:$H$96,2,) -> MIMICA MIROSLAV | D68: =VLOOKUP(B68,STARTNA!$A$12:$H$96,3,) -> M | E68: =VLOOKUP(B68,STARTNA!$A$12:$H$96,4,) -> 1958 | F68: =VLOOKUP(B68,STARTNA!$A$12:$H$96,5,) -> M/Ž 70 | G68: =VLOOKUP(B68,STARTNA!$A$12:$H$96,6,) -> REKR | H68: =VLOOKUP(B68,STARTNA!$A$12:$H$96,7,) -> DUGI RAT | I68: 40.37 | J68: 0 | K68: FALSE

Sheet CILJNA služb
A5: 32. OTVORENO PRVENSTVO DALMACIJE U DALJINSKOM PLIVANJU - OMIŠ 2025. | M5: 1. Skinuti zaštitu
M6: 2. Kopirati tablicu iz lista „CILJNA NESLUŽBENA”
B7: dionica - 1501 metar | F7: Omiš, 23. 8. 2025. | M7: 3. Staviti filter
M8: 4. Odabrati stupac K (IK)
C9: službena CILJNA LISTA | M9: 5. Odabrati plivače IK
M10: 6. Kopirati plivače IK u tablicu „PLIVAČI IZVAN KONKURENCIJE”
A11: rang | B11: ST. BR | C11: PREZIME I IME | D11: S | E11: GOD | F11: KAT | G11: klub/rekr | H11: MJESTO | I11: rez | J11: DOM | K11: IK | M11: 7. Označiti stupac A (Rang) plivača IK bojom
A12: 1 | B12: 32 | C12: =VLOOKUP(B12,STARTNA!$A$12:$H$96,2,) -> TAFRA MATE | D12: =VLOOKUP(B12,STARTNA!$A$12:$H$96,3,) -> M | E12: =VLOOKUP(B12,STARTNA!$A$12:$H$96,4,) -> 2009 | F12: =VLOOKUP(B12,STARTNA!$A$12:$H$96,5,) -> M/Ž 19 | G12: =VLOOKUP(B12,STARTNA!$A$12:$H$96,6,) -> REKR | H12: =VLOOKUP(B12,STARTNA!$A$12:$H$96,7,) -> OMIŠ | I12: 18.11 | J12: =IF($H$12:$H$103="Omiš","DOM",) -> DOM | K12: =AND(E12<2014,G12="KLUB") -> FALSE | M12: 8. Ukinuti filter
A13: 2 | B13: 34 | C13: =VLOOKUP(B13,STARTNA!$A$12:$H$96,2,) -> LATINOVIĆ SRĐAN | D13: =VLOOKUP(B13,STARTNA!$A$12:$H$96,3,) -> M | E13: =VLOOKUP(B13,STARTNA!$A$12:$H$96,4,) -> 1988 | F13: =VLOOKUP(B13,STARTNA!$A$12:$H$96,5,) -> M/Ž 39 | G13: =VLOOKUP(B13,STARTNA!$A$12:$H$96,6,) -> REKR | H13: =VLOOKUP(B13,STARTNA!$A$12:$H$96,7,) -> SPLIT | I13: 19.11 | J13: 0 | K13: FALSE | M13: 10. Numerirati novi Rang
A14: 3 | B14: 29 | C14: =VLOOKUP(B14,STARTNA!$A$12:$H$96,2,) -> STOJANOVIĆ MIHOVIL | D14: =VLOOKUP(B14,STARTNA!$A$12:$H$96,3,) -> M | E14: =VLOOKUP(B14,STARTNA!$A$12:$H$96,4,) -> 1985 | F14: =VLOOKUP(B14,STARTNA!$A$12:$H$96,5,) -> M/Ž 49 | G14: =VLOOKUP(B14,STARTNA!$A$12:$H$96,6,) -> REKR | H14: =VLOOKUP(B14,STARTNA!$A$12:$H$96,7,) -> DRNIŠ | I14: 19.16 | J14: 0 | K14: FALSE | M14: 11. Staviti zaštitu „h”
A15: 4 | B15: 39 | C15: =VLOOKUP(B15,STARTNA!$A$12:$H$96,2,) -> BOBANOVIĆ NIKO | D15: =VLOOKUP(B15,STARTNA!$A$12:$H$96,3,) -> M | E15: =VLOOKUP(B15,STARTNA!$A$12:$H$96,4,) -> 2012 | F15: =VLOOKUP(B15,STARTNA!$A$12:$H$96,5,) -> M/Ž 15 | G15: =VLOOKUP(B15,STARTNA!$A$12:$H$96,6,) -> REKR | H15: =VLOOKUP(B15,STARTNA!$A$12:$H$96,7,) -> SPLIT | I15: 20.03 | J15: 0 | K15: FALSE
A16: 5 | B16: 31 | C16: =VLOOKUP(B16,STARTNA!$A$12:$H$96,2,) -> GALIĆ PETRA | D16: Ž | E16: =VLOOKUP(B16,STARTNA!$A$12:$H$96,4,) -> 2010 | F16: =VLOOKUP(B16,STARTNA!$A$12:$H$96,5,) -> M/Ž 15 | G16: =VLOOKUP(B16,STARTNA!$A$12:$H$96,6,) -> REKR | H16: =VLOOKUP(B16,STARTNA!$A$12:$H$96,7,) -> SPLIT | I16: 20.16 | J16: 0 | K16: FALSE
A17: 6 | B17: 23 | C17: =VLOOKUP(B17,STARTNA!$A$12:$H$96,2,) -> KUNDID IGOR | D17: =VLOOKUP(B17,STARTNA!$A$12:$H$96,3,) -> M | E17: =VLOOKUP(B17,STARTNA!$A$12:$H$96,4,) -> 1981 | F17: =VLOOKUP(B17,STARTNA!$A$12:$H$96,5,) -> M/Ž 49 | G17: =VLOOKUP(B17,STARTNA!$A$12:$H$96,6,) -> REKR | H17: =VLOOKUP(B17,STARTNA!$A$12:$H$96,7,) -> STOBREČ | I17: 20.34 | J17: 0 | K17: FALSE
A18: 7 | B18: 44 | C18: =VLOOKUP(B18,STARTNA!$A$12:$H$96,2,) -> GABELLINI DIEGO | D18: =VLOOKUP(B18,STARTNA!$A$12:$H$96,3,) -> M | E18: =VLOOKUP(B18,STARTNA!$A$12:$H$96,4,) -> 2013 | F18: =VLOOKUP(B18,STARTNA!$A$12:$H$96,5,) -> M/Ž 12 | G18: =VLOOKUP(B18,STARTNA!$A$12:$H$96,6,) -> REKR | H18: =VLOOKUP(B18,STARTNA!$A$12:$H$96,7,) -> ITALIJA | I18: 20.45 | J18: 0 | K18: FALSE
A19: 8 | B19: 28 | C19: =VLOOKUP(B19,STARTNA!$A$12:$H$96,2,) -> ZEKANOVIĆ MIA | D19: =VLOOKUP(B19,STARTNA!$A$12:$H$96,3,) -> Ž | E19: =VLOOKUP(B19,STARTNA!$A$12:$H$96,4,) -> 2010 | F19: =VLOOKUP(B19,STARTNA!$A$12:$H$96,5,) -> M/Ž 15 | G19: =VLOOKUP(B19,STARTNA!$A$12:$H$96,6,) -> REKR | H19: =VLOOKUP(B19,STARTNA!$A$12:$H$96,7,) -> ZADAR | I19: 20.58 | J19: 0 | K19: FALSE
A20: 9 | B20: 33 | C20: =VLOOKUP(B20,STARTNA!$A$12:$H$96,2,) -> BOŽAN LUKA | D20: =VLOOKUP(B20,STARTNA!$A$12:$H$96,3,) -> M | E20: =VLOOKUP(B20,STARTNA!$A$12:$H$96,4,) -> 2010 | F20: =VLOOKUP(B20,STARTNA!$A$12:$H$96,5,) -> M/Ž 15 | G20: =VLOOKUP(B20,STARTNA!$A$12:$H$96,6,) -> REKR | H20: =VLOOKUP(B20,STARTNA!$A$12:$H$96,7,) -> ZAGREB | I20: 21 | J20: 0 | K20: FALSE
A21: 10 | B21: 37 | C21: =VLOOKUP(B21,STARTNA!$A$12:$H$96,2,) -> JAKOVČIĆ ROZA | D21: =VLOOKUP(B21,STARTNA!$A$12:$H$96,3,) -> Ž | E21: =VLOOKUP(B21,STARTNA!$A$12:$H$96,4,) -> 2012 | F21: =VLOOKUP(B21,STARTNA!$A$12:$H$96,5,) -> M/Ž 15 | G21: =VLOOKUP(B21,STARTNA!$A$12:$H$96,6,) -> REKR | H21: =VLOOKUP(B21,STARTNA!$A$12:$H$96,7,) -> OMIŠ | I21: 21.02 | J21: DOM | K21: FALSE
A22: 11 | B22: 30 | C22: =VLOOKUP(B22,STARTNA!$A$12:$H$96,2,) -> BRZOVIĆ ANA | D22: =VLOOKUP(B22,STARTNA!$A$12:$H$96,3,) -> Ž | E22: =VLOOKUP(B22,STARTNA!$A$12:$H$96,4,) -> 2008 | F22: =VLOOKUP(B22,STARTNA!$A$12:$H$96,5,) -> M/Ž 19 | G22: =VLOOKUP(B22,STARTNA!$A$12:$H$96,6,) -> REKR | H22: =VLOOKUP(B22,STARTNA!$A$12:$H$96,7,) -> OMIŠ | I22: 21.13 | J22: DOM | K22: FALSE
A23: 12 | B23: 54 | C23: =VLOOKUP(B23,STARTNA!$A$12:$H$96,2,) -> BEBIĆ MIJO | D23: =VLOOKUP(B23,STARTNA!$A$12:$H$96,3,) -> M | E23: =VLOOKUP(B23,STARTNA!$A$12:$H$96,4,) -> 1978 | F23: =VLOOKUP(B23,STARTNA!$A$12:$H$96,5,) -> M/Ž 49 | G23: =VLOOKUP(B23,STARTNA!$A$12:$H$96,6,) -> REKR | H23: =VLOOKUP(B23,STARTNA!$A$12:$H$96,7,) -> SPLIT | I23: 21.17 | J23: 0 | K23: FALSE
A24: 13 | B24: 1 | C24: =VLOOKUP(B24,STARTNA!$A$12:$H$96,2,) -> PRVAN BORKO | D24: =VLOOKUP(B24,STARTNA!$A$12:$H$96,3,) -> M | E24: =VLOOKUP(B24,STARTNA!$A$12:$H$96,4,) -> 1951 | F24: =VLOOKUP(B24,STARTNA!$A$12:$H$96,5,) -> M/Ž 75 | G24: =VLOOKUP(B24,STARTNA!$A$12:$H$96,6,) -> REKR | H24: =VLOOKUP(B24,STARTNA!$A$12:$H$96,7,) -> ZAGREB | I24: 21.51 | J24: 0 | K24: FALSE
A25: 14 | B25: 49 | C25: =VLOOKUP(B25,STARTNA!$A$12:$H$96,2,) -> PULIĆ JOŠKO | D25: =VLOOKUP(B25,STARTNA!$A$12:$H$96,3,) -> M | E25: =VLOOKUP(B25,STARTNA!$A$12:$H$96,4,) -> 1981 | F25: =VLOOKUP(B25,STARTNA!$A$12:$H$96,5,) -> M/Ž 49 | G25: =VLOOKUP(B25,STARTNA!$A$12:$H$96,6,) -> REKR | H25: =VLOOKUP(B25,STARTNA!$A$12:$H$96,7,) -> DUBROVNIK | I25: 22.11 | J25: 0 | K25: FALSE
A26: 15 | B26: 27 | C26: =VLOOKUP(B26,STARTNA!$A$12:$H$96,2,) -> GRUBIŠIĆ DRAGAN | D26: =VLOOKUP(B26,STARTNA!$A$12:$H$96,3,) -> M | E26: =VLOOKUP(B26,STARTNA!$A$12:$H$96,4,) -> 1968 | F26: =VLOOKUP(B26,STARTNA!$A$12:$H$96,5,) -> M/Ž 59 | G26: =VLOOKUP(B26,STARTNA!$A$12:$H$96,6,) -> REKR | H26: =VLOOKUP(B26,STARTNA!$A$12:$H$96,7,) -> ŠIBENIK | I26: 22.24 | J26: 0 | K26: FALSE
A27: 16 | B27: 11 | C27: =VLOOKUP(B27,STARTNA!$A$12:$H$96,2,) -> BRKOVIĆ MARIN | D27: =VLOOKUP(B27,STARTNA!$A$12:$H$96,3,) -> M | E27: =VLOOKUP(B27,STARTNA!$A$12:$H$96,4,) -> 2015 | F27: =VLOOKUP(B27,STARTNA!$A$12:$H$96,5,) -> M/Ž 12 | G27: =VLOOKUP(B27,STARTNA!$A$12:$H$96,6,) -> KLUB | H27: =VLOOKUP(B27,STARTNA!$A$12:$H$96,7,) -> SPLIT | I27: 25.09 | J27: 0 | K27: FALSE
A28: 17 | B28: 19 | C28: =VLOOKUP(B28,STARTNA!$A$12:$H$96,2,) -> GRGAT MARIJO | D28: =VLOOKUP(B28,STARTNA!$A$12:$H$96,3,) -> M | E28: =VLOOKUP(B28,STARTNA!$A$12:$H$96,4,) -> 1974 | F28: =VLOOKUP(B28,STARTNA!$A$12:$H$96,5,) -> M/Ž 59 | G28: =VLOOKUP(B28,STARTNA!$A$12:$H$96,6,) -> REKR | H28: =VLOOKUP(B28,STARTNA!$A$12:$H$96,7,) -> DUGI RAT | I28: 25.37 | J28: 0 | K28: FALSE
A29: 18 | B29: 45 | C29: =VLOOKUP(B29,STARTNA!$A$12:$H$96,2,) -> MANDUŠIĆ IGOR | D29: =VLOOKUP(B29,STARTNA!$A$12:$H$96,3,) -> M | E29: =VLOOKUP(B29,STARTNA!$A$12:$H$96,4,) -> 1974 | F29: =VLOOKUP(B29,STARTNA!$A$12:$H$96,5,) -> M/Ž 59 | G29: =VLOOKUP(B29,STARTNA!$A$12:$H$96,6,) -> REKR | H29: =VLOOKUP(B29,STARTNA!$A$12:$H$96,7,) -> TROGIR | I29: 25.46 | J29: 0 | K29: FALSE
A30: 19 | B30: 22 | C30: =VLOOKUP(B30,STARTNA!$A$12:$H$96,2,) -> BALIĆ ANTE | D30: =VLOOKUP(B30,STARTNA!$A$12:$H$96,3,) -> M | E30: =VLOOKUP(B30,STARTNA!$A$12:$H$96,4,) -> 1981 | F30: =VLOOKUP(B30,STARTNA!$A$12:$H$96,5,) -> M/Ž 49 | G30: =VLOOKUP(B30,STARTNA!$A$12:$H$96,6,) -> REKR | H30: =VLOOKUP(B30,STARTNA!$A$12:$H$96,7,) -> ZAGREB | I30: 25.5 | J30: 0 | K30: FALSE
A31: 20 | B31: 38 | C31: =VLOOKUP(B31,STARTNA!$A$12:$H$96,2,) -> BOBANOVIĆ PETAR | D31: =VLOOKUP(B31,STARTNA!$A$12:$H$96,3,) -> M | E31: =VLOOKUP(B31,STARTNA!$A$12:$H$96,4,) -> 2015 | F31: =VLOOKUP(B31,STARTNA!$A$12:$H$96,5,) -> M/Ž 12 | G31: =VLOOKUP(B31,STARTNA!$A$12:$H$96,6,) -> REKR | H31: =VLOOKUP(B31,STARTNA!$A$12:$H$96,7,) -> SPLIT | I31: 26.09 | J31: 0 | K31: FALSE
A32: 21 | B32: 40 | C32: =VLOOKUP(B32,STARTNA!$A$12:$H$96,2,) -> BOBANOVIĆ HRVOJE | D32: =VLOOKUP(B32,STARTNA!$A$12:$H$96,3,) -> M | E32: =VLOOKUP(B32,STARTNA!$A$12:$H$96,4,) -> 1979 | F32: =VLOOKUP(B32,STARTNA!$A$12:$H$96,5,) -> M/Ž 49 | G32: =VLOOKUP(B32,STARTNA!$A$12:$H$96,6,) -> REKR | H32: =VLOOKUP(B32,STARTNA!$A$12:$H$96,7,) -> SPLIT | I32: 26.12 | J32: 0 | K32: FALSE
A33: 22 | B33: 24 | C33: =VLOOKUP(B33,STARTNA!$A$12:$H$96,2,) -> KUNDID TONI | D33: =VLOOKUP(B33,STARTNA!$A$12:$H$96,3,) -> M | E33: =VLOOKUP(B33,STARTNA!$A$12:$H$96,4,) -> 2014 | F33: =VLOOKUP(B33,STARTNA!$A$12:$H$96,5,) -> M/Ž 12 | G33: =VLOOKUP(B33,STARTNA!$A$12:$H$96,6,) -> REKR | H33: =VLOOKUP(B33,STARTNA!$A$12:$H$96,7,) -> STOBREČ | I33: 26.2 | J33: 0 | K33: FALSE
A34: 23 | B34: 21 | C34: =VLOOKUP(B34,STARTNA!$A$12:$H$96,2,) -> ARAPOVIĆ ANA | D34: =VLOOKUP(B34,STARTNA!$A$12:$H$96,3,) -> Ž | E34: =VLOOKUP(B34,STARTNA!$A$12:$H$96,4,) -> 1982 | F34: =VLOOKUP(B34,STARTNA!$A$12:$H$96,5,) -> M/Ž 49 | G34: =VLOOKUP(B34,STARTNA!$A$12:$H$96,6,) -> REKR | H34: =VLOOKUP(B34,STARTNA!$A$12:$H$96,7,) -> SPLIT | I34: 26.3 | J34: 0 | K34: FALSE
A35: 24 | B35: 16 | C35: =VLOOKUP(B35,STARTNA!$A$12:$H$96,2,) -> BILANOVIĆ JURE | D35: =VLOOKUP(B35,STARTNA!$A$12:$H$96,3,) -> M | E35: =VLOOKUP(B35,STARTNA!$A$12:$H$96,4,) -> 1981 | F35: =VLOOKUP(B35,STARTNA!$A$12:$H$96,5,) -> M/Ž 49 | G35: =VLOOKUP(B35,STARTNA!$A$12:$H$96,6,) -> REKR | H35: =VLOOKUP(B35,STARTNA!$A$12:$H$96,7,) -> DUGI RAT | I35: 26.53 | J35: 0 | K35: FALSE
A36: 25 | B36: 47 | C36: =VLOOKUP(B36,STARTNA!$A$12:$H$96,2,) -> ČAGALJ VICKO | D36: =VLOOKUP(B36,STARTNA!$A$12:$H$96,3,) -> M | E36: =VLOOKUP(B36,STARTNA!$A$12:$H$96,4,) -> 1993 | F36: =VLOOKUP(B36,STARTNA!$A$12:$H$96,5,) -> M/Ž 39 | G36: =VLOOKUP(B36,STARTNA!$A$12:$H$96,6,) -> REKR | H36: =VLOOKUP(B36,STARTNA!$A$12:$H$96,7,) -> ZAGREB | I36: 27.2 | J36: 0 | K36: FALSE
A37: 26 | B37: 35 | C37: =VLOOKUP(B37,STARTNA!$A$12:$H$96,2,) -> ŠOŠIĆ MARKO | D37: =VLOOKUP(B37,STARTNA!$A$12:$H$96,3,) -> M | E37: =VLOOKUP(B37,STARTNA!$A$12:$H$96,4,) -> 1985 | F37: =VLOOKUP(B37,STARTNA!$A$12:$H$96,5,) -> M/Ž 49 | G37: =VLOOKUP(B37,STARTNA!$A$12:$H$96,6,) -> REKR | H37: =VLOOKUP(B37,STARTNA!$A$12:$H$96,7,) -> BRELA | I37: 27.21 | J37: 0 | K37: FALSE
A38: 27 | B38: 55 | C38: =VLOOKUP(B38,STARTNA!$A$12:$H$96,2,) -> PIVČEVIĆ IVO | D38: =VLOOKUP(B38,STARTNA!$A$12:$H$96,3,) -> M | E38: =VLOOKUP(B38,STARTNA!$A$12:$H$96,4,) -> 1993 | F38: =VLOOKUP(B38,STARTNA!$A$12:$H$96,5,) -> M/Ž 39 | G38: =VLOOKUP(B38,STARTNA!$A$12:$H$96,6,) -> REKR | H38: =VLOOKUP(B38,STARTNA!$A$12:$H$96,7,) -> OMIŠ | I38: 27.34 | J38: DOM | K38: FALSE
A39: 28 | B39: 18 | C39: =VLOOKUP(B39,STARTNA!$A$12:$H$96,2,) -> TOMIĆ ZORAN | D39: =VLOOKUP(B39,STARTNA!$A$12:$H$96,3,) -> M | E39: =VLOOKUP(B39,STARTNA!$A$12:$H$96,4,) -> 1974 | F39: =VLOOKUP(B39,STARTNA!$A$12:$H$96,5,) -> M/Ž 59 | G39: =VLOOKUP(B39,STARTNA!$A$12:$H$96,6,) -> REKR | H39: =VLOOKUP(B39,STARTNA!$A$12:$H$96,7,) -> SPLIT | I39: 27.38 | J39: 0 | K39: FALSE
A40: 29 | B40: 9 | C40: =VLOOKUP(B40,STARTNA!$A$12:$H$96,2,) -> KNEŽEVIĆ FILIP | D40: =VLOOKUP(B40,STARTNA!$A$12:$H$96,3,) -> M | E40: =VLOOKUP(B40,STARTNA!$A$12:$H$96,4,) -> 1995 | F40: =VLOOKUP(B40,STARTNA!$A$12:$H$96,5,) -> M/Ž 39 | G40: =VLOOKUP(B40,STARTNA!$A$12:$H$96,6,) -> REKR | H40: =VLOOKUP(B40,STARTNA!$A$12:$H$96,7,) -> ŠIBENIK | I40: 27.45 | J40: 0 | K40: FALSE
A41: 30 | B41: 52 | C41: =VLOOKUP(B41,STARTNA!$A$12:$H$96,2,) -> STANIĆ CVITA | D41: =VLOOKUP(B41,STARTNA!$A$12:$H$96,3,) -> Ž | E41: =VLOOKUP(B41,STARTNA!$A$12:$H$96,4,) -> 2011 | F41: =VLOOKUP(B41,STARTNA!$A$12:$H$96,5,) -> M/Ž 15 | G41: =VLOOKUP(B41,STARTNA!$A$12:$H$96,6,) -> REKR | H41: =VLOOKUP(B41,STARTNA!$A$12:$H$96,7,) -> OMIŠ | I41: 27.46 | J41: DOM | K41: FALSE
A42: 31 | B42: 7 | C42: =VLOOKUP(B42,STARTNA!$A$12:$H$96,2,) -> KEKEZ ANTE | D42: =VLOOKUP(B42,STARTNA!$A$12:$H$96,3,) -> M | E42: =VLOOKUP(B42,STARTNA!$A$12:$H$96,4,) -> 1950 | F42: =VLOOKUP(B42,STARTNA!$A$12:$H$96,5,) -> M/Ž 75 | G42: =VLOOKUP(B42,STARTNA!$A$12:$H$96,6,) -> REKR | H42: =VLOOKUP(B42,STARTNA!$A$12:$H$96,7,) -> OMIŠ | I42: 27.48 | J42: DOM | K42: FALSE
A43: 32 | B43: 50 | C43: =VLOOKUP(B43,STARTNA!$A$12:$H$96,2,) -> PERAK MARIJA | D43: =VLOOKUP(B43,STARTNA!$A$12:$H$96,3,) -> Ž | E43: =VLOOKUP(B43,STARTNA!$A$12:$H$96,4,) -> 2012 | F43: =VLOOKUP(B43,STARTNA!$A$12:$H$96,5,) -> M/Ž 15 | G43: =VLOOKUP(B43,STARTNA!$A$12:$H$96,6,) -> REKR | H43: =VLOOKUP(B43,STARTNA!$A$12:$H$96,7,) -> OMIŠ | I43: 27.51 | J43: DOM | K43: FALSE
A44: 33 | B44: 5 | C44: =VLOOKUP(B44,STARTNA!$A$12:$H$96,2,) -> KAČIĆ ZORAN | D44: =VLOOKUP(B44,STARTNA!$A$12:$H$96,3,) -> M | E44: =VLOOKUP(B44,STARTNA!$A$12:$H$96,4,) -> 1950 | F44: =VLOOKUP(B44,STARTNA!$A$12:$H$96,5,) -> M/Ž 75 | G44: =VLOOKUP(B44,STARTNA!$A$12:$H$96,6,) -> REKR | H44: =VLOOKUP(B44,STARTNA!$A$12:$H$96,7,) -> SPLIT | I44: 28.16 | J44: =IF($H$12:$H$103="Omiš","DOM",) -> 0 | K44: =AND(E44<2014,G44="KLUB") -> FALSE
A45: 34 | B45: 43 | C45: =VLOOKUP(B45,STARTNA!$A$12:$H$96,2,) -> BAŠIĆ VEDRAN | D45: =VLOOKUP(B45,STARTNA!$A$12:$H$96,3,) -> M | E45: =VLOOKUP(B45,STARTNA!$A$12:$H$96,4,) -> 1975 | F45: =VLOOKUP(B45,STARTNA!$A$12:$H$96,5,) -> M/Ž 59 | G45: =VLOOKUP(B45,STARTNA!$A$12:$H$96,6,) -> REKR | H45: =VLOOKUP(B45,STARTNA!$A$12:$H$96,7,) -> SPLIT | I45: 28.24 | J45: 0 | K45: FALSE
A46: 35 | B46: 53 | C46: =VLOOKUP(B46,STARTNA!$A$12:$H$96,2,) -> STANIĆ LEA | D46: =VLOOKUP(B46,STARTNA!$A$12:$H$96,3,) -> Ž | E46: =VLOOKUP(B46,STARTNA!$A$12:$H$96,4,) -> 2012 | F46: =VLOOKUP(B46,STARTNA!$A$12:$H$96,5,) -> M/Ž 15 | G46: =VLOOKUP(B46,STARTNA!$A$12:$H$96,6,) -> REKR | H46: =VLOOKUP(B46,STARTNA!$A$12:$H$96,7,) -> OMIŠ | I46: 29.05 | J46: DOM | K46: FALSE
A47: 36 | B47: 46 | C47: =VLOOKUP(B47,STARTNA!$A$12:$H$96,2,) -> MEKINIĆ PETAR | D47: =VLOOKUP(B47,STARTNA!$A$12:$H$96,3,) -> M | E47: =VLOOKUP(B47,STARTNA!$A$12:$H$96,4,) -> 2006 | F47: =VLOOKUP(B47,STARTNA!$A$12:$H$96,5,) -> M/Ž 19 | G47: =VLOOKUP(B47,STARTNA!$A$12:$H$96,6,) -> REKR | H47: =VLOOKUP(B47,STARTNA!$A$12:$H$96,7,) -> OMIŠ | I47: 29.27 | J47: DOM | K47: FALSE
A48: 37 | B48: 51 | C48: =VLOOKUP(B48,STARTNA!$A$12:$H$96,2,) -> DRAGOŠEVIĆ ELA | D48: =VLOOKUP(B48,STARTNA!$A$12:$H$96,3,) -> Ž | E48: =VLOOKUP(B48,STARTNA!$A$12:$H$96,4,) -> 2012 | F48: =VLOOKUP(B48,STARTNA!$A$12:$H$96,5,) -> M/Ž 15 | G48: =VLOOKUP(B48,STARTNA!$A$12:$H$96,6,) -> REKR | H48: =VLOOKUP(B48,STARTNA!$A$12:$H$96,7,) -> OMIŠ | I48: 29.34 | J48: DOM | K48: FALSE
A49: 38 | B49: 26 | C49: =VLOOKUP(B49,STARTNA!$A$12:$H$96,2,) -> GRUBIŠIĆ INES | D49: =VLOOKUP(B49,STARTNA!$A$12:$H$96,3,) -> Ž | E49: =VLOOKUP(B49,STARTNA!$A$12:$H$96,4,) -> 1995 | F49: =VLOOKUP(B49,STARTNA!$A$12:$H$96,5,) -> M/Ž 39 | G49: =VLOOKUP(B49,STARTNA!$A$12:$H$96,6,) -> REKR | H49: =VLOOKUP(B49,STARTNA!$A$12:$H$96,7,) -> ZAGREB | I49: 29.41 | J49: 0 | K49: FALSE
A50: 39 | B50: 15 | C50: =VLOOKUP(B50,STARTNA!$A$12:$H$96,2,) -> LIPNJAK TAMARA | D50: =VLOOKUP(B50,STARTNA!$A$12:$H$96,3,) -> Ž | E50: =VLOOKUP(B50,STARTNA!$A$12:$H$96,4,) -> 1992 | F50: =VLOOKUP(B50,STARTNA!$A$12:$H$96,5,) -> M/Ž 39 | G50: =VLOOKUP(B50,STARTNA!$A$12:$H$96,6,) -> REKR | H50: =VLOOKUP(B50,STARTNA!$A$12:$H$96,7,) -> ZAGREB | I50: 31.19 | J50: 0 | K50: FALSE
A51: 40 | B51: 6 | C51: =VLOOKUP(B51,STARTNA!$A$12:$H$96,2,) -> KAČIĆ DUPLANČIĆ DIANA | D51: =VLOOKUP(B51,STARTNA!$A$12:$H$96,3,) -> Ž | E51: =VLOOKUP(B51,STARTNA!$A$12:$H$96,4,) -> 1978 | F51: =VLOOKUP(B51,STARTNA!$A$12:$H$96,5,) -> M/Ž 49 | G51: =VLOOKUP(B51,STARTNA!$A$12:$H$96,6,) -> REKR | H51: =VLOOKUP(B51,STARTNA!$A$12:$H$96,7,) -> SPLIT | I51: 31.33 | J51: 0 | K51: FALSE
A52: 41 | B52: 42 | C52: =VLOOKUP(B52,STARTNA!$A$12:$H$96,2,) -> BOBAN HRVOJE | D52: =VLOOKUP(B52,STARTNA!$A$12:$H$96,3,) -> M | E52: =VLOOKUP(B52,STARTNA!$A$12:$H$96,4,) -> 1976 | F52: =VLOOKUP(B52,STARTNA!$A$12:$H$96,5,) -> M/Ž 49 | G52: =VLOOKUP(B52,STARTNA!$A$12:$H$96,6,) -> REKR | H52: =VLOOKUP(B52,STARTNA!$A$12:$H$96,7,) -> SPLIT | I52: 31.47 | J52: 0 | K52: FALSE
A53: 42 | B53: 8 | C53: =VLOOKUP(B53,STARTNA!$A$12:$H$96,2,) -> VERINA MARIA | D53: =VLOOKUP(B53,STARTNA!$A$12:$H$96,3,) -> Ž | E53: =VLOOKUP(B53,STARTNA!$A$12:$H$96,4,) -> 1965 | F53: =VLOOKUP(B53,STARTNA!$A$12:$H$96,5,) -> M/Ž 65 | G53: =VLOOKUP(B53,STARTNA!$A$12:$H$96,6,) -> REKR | H53: =VLOOKUP(B53,STARTNA!$A$12:$H$96,7,) -> SUTIVAN | I53: 32.02 | J53: 0 | K53: FALSE
A54: 43 | B54: 20 | C54: =VLOOKUP(B54,STARTNA!$A$12:$H$96,2,) -> LUKIĆ ZITA | D54: =VLOOKUP(B54,STARTNA!$A$12:$H$96,3,) -> Ž | E54: =VLOOKUP(B54,STARTNA!$A$12:$H$96,4,) -> 2002 | F54: =VLOOKUP(B54,STARTNA!$A$12:$H$96,5,) -> M/Ž 29 | G54: =VLOOKUP(B54,STARTNA!$A$12:$H$96,6,) -> REKR | H54: =VLOOKUP(B54,STARTNA!$A$12:$H$96,7,) -> SPLIT | I54: 32.12 | J54: 0 | K54: FALSE
A55: 44 | B55: 36 | C55: =VLOOKUP(B55,STARTNA!$A$12:$H$96,2,) -> JAKOVČIĆ FABJANA | D55: =VLOOKUP(B55,STARTNA!$A$12:$H$96,3,) -> Ž | E55: =VLOOKUP(B55,STARTNA!$A$12:$H$96,4,) -> 1975 | F55: =VLOOKUP(B55,STARTNA!$A$12:$H$96,5,) -> M/Ž 59 | G55: =VLOOKUP(B55,STARTNA!$A$12:$H$96,6,) -> REKR | H55: =VLOOKUP(B55,STARTNA!$A$12:$H$96,7,) -> OMIŠ | I55: 32.25 | J55: DOM | K55: FALSE
A56: 45 | B56: 4 | C56: =VLOOKUP(B56,STARTNA!$A$12:$H$96,2,) -> ĆOSIĆ HRVOJE | D56: =VLOOKUP(B56,STARTNA!$A$12:$H$96,3,) -> M | E56: =VLOOKUP(B56,STARTNA!$A$12:$H$96,4,) -> 1959 | F56: =VLOOKUP(B56,STARTNA!$A$12:$H$96,5,) -> M/Ž 70 | G56: =VLOOKUP(B56,STARTNA!$A$12:$H$96,6,) -> REKR | H56: =VLOOKUP(B56,STARTNA!$A$12:$H$96,7,) -> BIH | I56: 34.07 | J56: 0 | K56: FALSE
A57: 46 | B57: 12 | C57: =VLOOKUP(B57,STARTNA!$A$12:$H$96,2,) -> DUMANIĆ NAĐAN | D57: =VLOOKUP(B57,STARTNA!$A$12:$H$96,3,) -> M | E57: =VLOOKUP(B57,STARTNA!$A$12:$H$96,4,) -> 1962 | F57: =VLOOKUP(B57,STARTNA!$A$12:$H$96,5,) -> M/Ž 65 | G57: =VLOOKUP(B57,STARTNA!$A$12:$H$96,6,) -> REKR | H57: =VLOOKUP(B57,STARTNA!$A$12:$H$96,7,) -> SPLIT | I57: 34.11 | J57: 0 | K57: FALSE
A58: 47 | B58: 14 | C58: =VLOOKUP(B58,STARTNA!$A$12:$H$96,2,) -> ŠUŠNJAR PJERA | D58: =VLOOKUP(B58,STARTNA!$A$12:$H$96,3,) -> Ž | E58: =VLOOKUP(B58,STARTNA!$A$12:$H$96,4,) -> 1967 | F58: =VLOOKUP(B58,STARTNA!$A$12:$H$96,5,) -> M/Ž 59 | G58: =VLOOKUP(B58,STARTNA!$A$12:$H$96,6,) -> REKR | H58: =VLOOKUP(B58,STARTNA!$A$12:$H$96,7,) -> SPLIT | I58: 34.45 | J58: 0 | K58: FALSE
A59: 48 | B59: 57 | C59: =VLOOKUP(B59,STARTNA!$A$12:$H$96,2,) -> ŠILJEG FILIPA | D59: =VLOOKUP(B59,STARTNA!$A$12:$H$96,3,) -> Ž | E59: =VLOOKUP(B59,STARTNA!$A$12:$H$96,4,) -> 2002 | F59: =VLOOKUP(B59,STARTNA!$A$12:$H$96,5,) -> M/Ž 29 | G59: =VLOOKUP(B59,STARTNA!$A$12:$H$96,6,) -> REKR | H59: =VLOOKUP(B59,STARTNA!$A$12:$H$96,7,) -> SPLIT | I59: 34.52 | J59: 0 | K59: FALSE
A60: 49 | B60: 3 | C60: =VLOOKUP(B60,STARTNA!$A$12:$H$96,2,) -> ŠKORIĆ JOSIP | D60: =VLOOKUP(B60,STARTNA!$A$12:$H$96,3,) -> M | E60: =VLOOKUP(B60,STARTNA!$A$12:$H$96,4,) -> 1960 | F60: =VLOOKUP(B60,STARTNA!$A$12:$H$96,5,) -> M/Ž 65 | G60: =VLOOKUP(B60,STARTNA!$A$12:$H$96,6,) -> REKR | H60: =VLOOKUP(B60,STARTNA!$A$12:$H$96,7,) -> BIH | I60: 35.04 | J60: 0 | K60: FALSE
A61: 50 | B61: 48 | C61: =VLOOKUP(B61,STARTNA!$A$12:$H$96,2,) -> TOMAŠ RADOSLAV | D61: =VLOOKUP(B61,STARTNA!$A$12:$H$96,3,) -> M | E61: =VLOOKUP(B61,STARTNA!$A$12:$H$96,4,) -> 1951 | F61: =VLOOKUP(B61,STARTNA!$A$12:$H$96,5,) -> M/Ž 75 | G61: =VLOOKUP(B61,STARTNA!$A$12:$H$96,6,) -> REKR | H61: =VLOOKUP(B61,STARTNA!$A$12:$H$96,7,) -> ZAGREB | I61: 36.07 | J61: 0 | K61: FALSE
A62: 51 | B62: 13 | C62: =VLOOKUP(B62,STARTNA!$A$12:$H$96,2,) -> ŠUŠNJAR MARIN | D62: =VLOOKUP(B62,STARTNA!$A$12:$H$96,3,) -> M | E62: =VLOOKUP(B62,STARTNA!$A$12:$H$96,4,) -> 1961 | F62: =VLOOKUP(B62,STARTNA!$A$12:$H$96,5,) -> M/Ž 65 | G62: =VLOOKUP(B62,STARTNA!$A$12:$H$96,6,) -> REKR | H62: =VLOOKUP(B62,STARTNA!$A$12:$H$96,7,) -> SPLIT | I62: 37.29 | J62: 0 | K62: FALSE
A63: 52 | B63: 41 | C63: =VLOOKUP(B63,STARTNA!$A$12:$H$96,2,) -> PERICA ŠINKA | D63: =VLOOKUP(B63,STARTNA!$A$12:$H$96,3,) -> Ž | E63: =VLOOKUP(B63,STARTNA!$A$12:$H$96,4,) -> 1966 | F63: =VLOOKUP(B63,STARTNA!$A$12:$H$96,5,) -> M/Ž 59 | G63: =VLOOKUP(B63,STARTNA!$A$12:$H$96,6,) -> REKR | H63: =VLOOKUP(B63,STARTNA!$A$12:$H$96,7,) -> OMIŠ | I63: 39.44 | J63: DOM | K63: FALSE
A64: 53 | B64: 56 | C64: =VLOOKUP(B64,STARTNA!$A$12:$H$96,2,) -> MIMICA MIROSLAV | D64: =VLOOKUP(B64,STARTNA!$A$12:$H$96,3,) -> M | E64: =VLOOKUP(B64,STARTNA!$A$12:$H$96,4,) -> 1958 | F64: =VLOOKUP(B64,STARTNA!$A$12:$H$96,5,) -> M/Ž 70 | G64: =VLOOKUP(B64,STARTNA!$A$12:$H$96,6,) -> REKR | H64: =VLOOKUP(B64,STARTNA!$A$12:$H$96,7,) -> DUGI RAT | I64: 40.37 | J64: 0 | K64: FALSE
C68: plivači IZVAN KONKURENCIJE
A70: RANG | B70: ST. BR | C70: PREZIME I IME | D70: S | E70: GOD | F70: KAT | G70: MJESTO | H70: REK / KL | I70: REZ | J70: DOM | K70: IK
A71: 2 | B71: 25 | C71: BRATIĆ DAMIR | D71: M | E71: 2012 | F71: =IF(E71>2012,"M/Ž 12",IF(E71>2009,"M/Ž 15",IF(E71>2005,"M/Ž 19",IF(E71>1995,"M/Ž 29",IF(E71>1985,"M/Ž 39",IF(E71>1975,"M/Ž 49",IF(E71>1965,"M/Ž 59",IF(E71>1959,"M/Ž 65",IF(E71>1954,"M/Ž 70",IF(E71>1949,"M/Ž 75",IF(E71>1931,"M/Ž 75+",))))))))))) -> M/Ž 15 | G71: KLUB | H71: SPLIT | I71: 18.49 | J71: =IF($H$12:$H$103="Omiš","DOM",) -> 0 | K71: 1
A72: 9 | B72: 2 | C72: =VLOOKUP(B72,STARTNA!$A$12:$H$96,2,) -> VIDEKOVIĆ UNA | D72: =VLOOKUP(B72,STARTNA!$A$12:$H$96,3,) -> Ž | E72: =VLOOKUP(B72,STARTNA!$A$12:$H$96,4,) -> 2011 | F72: =VLOOKUP(B72,STARTNA!$A$12:$H$96,5,) -> M/Ž 15 | G72: =VLOOKUP(B72,STARTNA!$A$12:$H$96,6,) -> KLUB | H72: =VLOOKUP(B72,STARTNA!$A$12:$H$96,7,) -> VINKOVCI | I72: 20.51 | J72: =IF($H$12:$H$103="Omiš","DOM",) -> 0 | K72: 1
A73: 12 | B73: 10 | C73: =VLOOKUP(B73,STARTNA!$A$12:$H$96,2,) -> RADNIĆ GEA | D73: =VLOOKUP(B73,STARTNA!$A$12:$H$96,3,) -> Ž | E73: =VLOOKUP(B73,STARTNA!$A$12:$H$96,4,) -> 2013 | F73: =VLOOKUP(B73,STARTNA!$A$12:$H$96,5,) -> M/Ž 12 | G73: =VLOOKUP(B73,STARTNA!$A$12:$H$96,6,) -> KLUB | H73: =VLOOKUP(B73,STARTNA!$A$12:$H$96,7,) -> SPLIT | I73: 21.08 | J73: =IF($H$12:$H$103="Omiš","DOM",) -> 0 | K73: 1
A74: 46 | B74: 17 | C74: =VLOOKUP(B74,STARTNA!$A$12:$H$96,2,) -> BELOUSOVA MARIA | D74: =VLOOKUP(B74,STARTNA!$A$12:$H$96,3,) -> Ž | E74: =VLOOKUP(B74,STARTNA!$A$12:$H$96,4,) -> 2012 | F74: =VLOOKUP(B74,STARTNA!$A$12:$H$96,5,) -> M/Ž 15 | G74: =VLOOKUP(B74,STARTNA!$A$12:$H$96,6,) -> KLUB | H74: =VLOOKUP(B74,STARTNA!$A$12:$H$96,7,) -> BRASINA | I74: 32.09 | J74: =IF($H$12:$H$103="Omiš","DOM",) -> 0 | K74: 1

Sheet POBJEDNICI
A5: 299 OTVORENO PRVENSTVO DALMACIJE U DALJINSKOM PLIVANJU - OMIŠ 2022.
B7: dionica - 1501 metar | F7: Omiš, 20. 8. 2022.
C9: POBJEDNICI
C11: UKUPNO MUŠKI
A12: rang | B12: ST. BR | C12: PREZIME I IME | D12: S | E12: GOD | F12: KAT | G12: klub/rekr | H12: MJESTO | I12: rez | J12: DOM | K12: IK
A13: 1 | B13: 32 | C13: =VLOOKUP(B13,STARTNA!$A$12:$H$96,2,) -> TAFRA MATE | D13: =VLOOKUP(B13,STARTNA!$A$12:$H$96,3,) -> M | E13: =VLOOKUP(B13,STARTNA!$A$12:$H$96,4,) -> 2009 | F13: =VLOOKUP(B13,STARTNA!$A$12:$H$96,5,) -> M/Ž 19 | G13: =VLOOKUP(B13,STARTNA!$A$12:$H$96,6,) -> REKR | H13: =VLOOKUP(B13,STARTNA!$A$12:$H$96,7,) -> OMIŠ | I13: 18.11 | J13: =IF($H$12:$H$161="Omiš","DOM",) -> DOM | K13: 0
A14: 2 | B14: 34 | C14: =VLOOKUP(B14,STARTNA!$A$12:$H$96,2,) -> LATINOVIĆ SRĐAN | D14: =VLOOKUP(B14,STARTNA!$A$12:$H$96,3,) -> M | E14: =VLOOKUP(B14,STARTNA!$A$12:$H$96,4,) -> 1988 | F14: =VLOOKUP(B14,STARTNA!$A$12:$H$96,5,) -> M/Ž 39 | G14: =VLOOKUP(B14,STARTNA!$A$12:$H$96,6,) -> REKR | H14: =VLOOKUP(B14,STARTNA!$A$12:$H$96,7,) -> SPLIT | I14: 19.11 | J14: =IF($H$12:$H$161="Omiš","DOM",) -> 0 | K14: =AND(E14<2014,G14="KLUB") -> FALSE
A15: 3 | B15: 29 | C15: =VLOOKUP(B15,STARTNA!$A$12:$H$96,2,) -> STOJANOVIĆ MIHOVIL | D15: =VLOOKUP(B15,STARTNA!$A$12:$H$96,3,) -> M | E15: =VLOOKUP(B15,STARTNA!$A$12:$H$96,4,) -> 1985 | F15: =VLOOKUP(B15,STARTNA!$A$12:$H$96,5,) -> M/Ž 49 | G15: =VLOOKUP(B15,STARTNA!$A$12:$H$96,6,) -> REKR | H15: =VLOOKUP(B15,STARTNA!$A$12:$H$96,7,) -> DRNIŠ | I15: 19.16 | J15: =IF($H$12:$H$104="Omiš","DOM",) -> 0 | K15: =AND(E15<2014,G15="KLUB") -> FALSE
C17: UKUPNO ŽENSKE
A18: rang | B18: ST. BR | C18: PREZIME I IME | D18: S | E18: GOD | F18: KAT | G18: klub/rekr | H18: MJESTO | I18: rez | J18: DOM | K18: IK
A19: 1 | B19: 31 | C19: =VLOOKUP(B19,STARTNA!$A$12:$H$96,2,) -> GALIĆ PETRA | D19: Ž | E19: =VLOOKUP(B19,STARTNA!$A$12:$H$96,4,) -> 2010 | F19: =VLOOKUP(B19,STARTNA!$A$12:$H$96,5,) -> M/Ž 15 | G19: =VLOOKUP(B19,STARTNA!$A$12:$H$96,6,) -> REKR | H19: =VLOOKUP(B19,STARTNA!$A$12:$H$96,7,) -> SPLIT | I19: 20.16 | J19: =IF($H$12:$H$161="Omiš","DOM",) -> 0 | K19: =AND(E19<2014,G19="KLUB") -> FALSE
A20: 2 | B20: 28 | C20: =VLOOKUP(B20,STARTNA!$A$12:$H$96,2,) -> ZEKANOVIĆ MIA | D20: =VLOOKUP(B20,STARTNA!$A$12:$H$96,3,) -> Ž | E20: =VLOOKUP(B20,STARTNA!$A$12:$H$96,4,) -> 2010 | F20: =VLOOKUP(B20,STARTNA!$A$12:$H$96,5,) -> M/Ž 15 | G20: =VLOOKUP(B20,STARTNA!$A$12:$H$96,6,) -> REKR | H20: =VLOOKUP(B20,STARTNA!$A$12:$H$96,7,) -> ZADAR | I20: 20.58 | J20: =IF($H$12:$H$161="Omiš","DOM",) -> 0 | K20: =AND(E20<2014,G20="KLUB") -> FALSE
A21: 3 | B21: 37 | C21: =VLOOKUP(B21,STARTNA!$A$12:$H$96,2,) -> JAKOVČIĆ ROZA | D21: =VLOOKUP(B21,STARTNA!$A$12:$H$96,3,) -> Ž | E21: =VLOOKUP(B21,STARTNA!$A$12:$H$96,4,) -> 2012 | F21: =VLOOKUP(B21,STARTNA!$A$12:$H$96,5,) -> M/Ž 15 | G21: =VLOOKUP(B21,STARTNA!$A$12:$H$96,6,) -> REKR | H21: =VLOOKUP(B21,STARTNA!$A$12:$H$96,7,) -> OMIŠ | I21: 21.02 | J21: =IF($H$12:$H$161="Omiš","DOM",) -> DOM | K21: =AND(E21<2014,G21="KLUB") -> FALSE
C23: DOMAĆI PLIVAČI MUŠKI
A24: rang | B24: ST. BR | C24: PREZIME I IME | D24: S | E24: GOD | F24: KAT | G24: klub/rekr | H24: MJESTO | I24: rez | J24: DOM | K24: IK
A25: 1 | B25: 32 | C25: =VLOOKUP(B25,STARTNA!$A$12:$H$96,2,) -> TAFRA MATE | D25: =VLOOKUP(B25,STARTNA!$A$12:$H$96,3,) -> M | E25: =VLOOKUP(B25,STARTNA!$A$12:$H$96,4,) -> 2009 | F25: =VLOOKUP(B25,STARTNA!$A$12:$H$96,5,) -> M/Ž 19 | G25: =VLOOKUP(B25,STARTNA!$A$12:$H$96,6,) -> REKR | H25: =VLOOKUP(B25,STARTNA!$A$12:$H$96,7,) -> OMIŠ | I25: 18.11 | J25: =IF($H$12:$H$161="Omiš","DOM",) -> DOM | K25: 0
A26: 2 | B26: 55 | C26: =VLOOKUP(B26,STARTNA!$A$12:$H$96,2,) -> PIVČEVIĆ IVO | D26: =VLOOKUP(B26,STARTNA!$A$12:$H$96,3,) -> M | E26: =VLOOKUP(B26,STARTNA!$A$12:$H$96,4,) -> 1993 | F26: =VLOOKUP(B26,STARTNA!$A$12:$H$96,5,) -> M/Ž 39 | G26: =VLOOKUP(B26,STARTNA!$A$12:$H$96,6,) -> REKR | H26: =VLOOKUP(B26,STARTNA!$A$12:$H$96,7,) -> OMIŠ | I26: 27.34 | J26: =IF($H$12:$H$161="Omiš","DOM",) -> DOM | K26: =AND(E26<2014,G26="KLUB") -> FALSE
A27: 3 | B27: 7 | C27: =VLOOKUP(B27,STARTNA!$A$12:$H$96,2,) -> KEKEZ ANTE | D27: =VLOOKUP(B27,STARTNA!$A$12:$H$96,3,) -> M | E27: =VLOOKUP(B27,STARTNA!$A$12:$H$96,4,) -> 1950 | F27: =VLOOKUP(B27,STARTNA!$A$12:$H$96,5,) -> M/Ž 75 | G27: =VLOOKUP(B27,STARTNA!$A$12:$H$96,6,) -> REKR | H27: =VLOOKUP(B27,STARTNA!$A$12:$H$96,7,) -> OMIŠ | I27: 27.48 | J27: =IF($H$12:$H$161="Omiš","DOM",) -> DOM | K27: =AND(E27<2014,G27="KLUB") -> FALSE
C29: DOMAĆE PLIVAČICE ŽENSKE
A30: rang | B30: ST. BR | C30: PREZIME I IME | D30: S | E30: GOD | F30: KAT | G30: klub/rekr | H30: MJESTO | J30: DOM | K30: IK
A31: 1 | B31: 37 | C31: =VLOOKUP(B31,STARTNA!$A$12:$H$96,2,) -> JAKOVČIĆ ROZA | D31: =VLOOKUP(B31,STARTNA!$A$12:$H$96,3,) -> Ž | E31: =VLOOKUP(B31,STARTNA!$A$12:$H$96,4,) -> 2012 | F31: =VLOOKUP(B31,STARTNA!$A$12:$H$96,5,) -> M/Ž 15 | G31: =VLOOKUP(B31,STARTNA!$A$12:$H$96,6,) -> REKR | H31: =VLOOKUP(B31,STARTNA!$A$12:$H$96,7,) -> OMIŠ | I31: 21.02 | J31: =IF($H$12:$H$161="Omiš","DOM",) -> DOM | K31: =AND(E31<2014,G31="KLUB") -> FALSE
A32: 2 | B32: 30 | C32: =VLOOKUP(B32,STARTNA!$A$12:$H$96,2,) -> BRZOVIĆ ANA | D32: =VLOOKUP(B32,STARTNA!$A$12:$H$96,3,) -> Ž | E32: =VLOOKUP(B32,STARTNA!$A$12:$H$96,4,) -> 2008 | F32: =VLOOKUP(B32,STARTNA!$A$12:$H$96,5,) -> M/Ž 19 | G32: =VLOOKUP(B32,STARTNA!$A$12:$H$96,6,) -> REKR | H32: =VLOOKUP(B32,STARTNA!$A$12:$H$96,7,) -> OMIŠ | I32: 21.13 | J32: =IF($H$12:$H$161="Omiš","DOM",) -> DOM | K32: =AND(E32<2014,G32="KLUB") -> FALSE
A33: 3 | B33: 52 | C33: =VLOOKUP(B33,STARTNA!$A$12:$H$96,2,) -> STANIĆ CVITA | D33: =VLOOKUP(B33,STARTNA!$A$12:$H$96,3,) -> Ž | E33: =VLOOKUP(B33,STARTNA!$A$12:$H$96,4,) -> 2011 | F33: =VLOOKUP(B33,STARTNA!$A$12:$H$96,5,) -> M/Ž 15 | G33: =VLOOKUP(B33,STARTNA!$A$12:$H$96,6,) -> REKR | H33: =VLOOKUP(B33,STARTNA!$A$12:$H$96,7,) -> OMIŠ | I33: 27.46 | J33: =IF($H$12:$H$161="Omiš","DOM",) -> DOM | K33: =AND(E33<2014,G33="KLUB") -> FALSE
C35: NAJMLAĐI PLIVAČ
A36: rang | B36: ST. BR | C36: PREZIME I IME | D36: S | E36: GOD | F36: KAT | G36: klub/rekr | H36: MJESTO | I36: rez | J36: DOM | K36: IK
A37: 17 | B37: 11 | C37: =VLOOKUP(B37,STARTNA!$A$12:$H$96,2,) -> BRKOVIĆ MARIN | D37: =VLOOKUP(B37,STARTNA!$A$12:$H$96,3,) -> M | E37: =VLOOKUP(B37,STARTNA!$A$12:$H$96,4,) -> 2015 | F37: =VLOOKUP(B37,STARTNA!$A$12:$H$96,5,) -> M/Ž 12 | G37: =VLOOKUP(B37,STARTNA!$A$12:$H$96,6,) -> KLUB | H37: =VLOOKUP(B37,STARTNA!$A$12:$H$96,7,) -> SPLIT | I37: 25.09
C39: NAJMLAĐA PLIVAČICA
A40: rang | B40: ST. BR | C40: PREZIME I IME | D40: S | E40: GOD | F40: KAT | G40: klub/rekr | H40: MJESTO | I40: rez | J40: DOM | K40: IK
A41: 12 | B41: 10 | C41: =VLOOKUP(B41,STARTNA!$A$12:$H$96,2,) -> RADNIĆ GEA | D41: =VLOOKUP(B41,STARTNA!$A$12:$H$96,3,) -> Ž | E41: =VLOOKUP(B41,STARTNA!$A$12:$H$96,4,) -> 2013 | F41: =VLOOKUP(B41,STARTNA!$A$12:$H$96,5,) -> M/Ž 12 | G41: =VLOOKUP(B41,STARTNA!$A$12:$H$96,6,) -> KLUB | H41: =VLOOKUP(B41,STARTNA!$A$12:$H$96,7,) -> SPLIT | I41: 21.08
C43: NAJSTARIJI PLIVAČ
A44: rang | B44: ST. BR | C44: PREZIME I IME | D44: S | E44: GOD | F44: KAT | G44: klub/rekr | H44: MJESTO | I44: rez | J44: DOM | K44: IK
A45: 34 | B45: 5 | C45: =VLOOKUP(B45,STARTNA!$A$12:$H$96,2,) -> KAČIĆ ZORAN | D45: =VLOOKUP(B45,STARTNA!$A$12:$H$96,3,) -> M | E45: =VLOOKUP(B45,STARTNA!$A$12:$H$96,4,) -> 1950 | F45: =VLOOKUP(B45,STARTNA!$A$12:$H$96,5,) -> M/Ž 75 | G45: =VLOOKUP(B45,STARTNA!$A$12:$H$96,6,) -> REKR | H45: =VLOOKUP(B45,STARTNA!$A$12:$H$96,7,) -> SPLIT | I45: 28.16
C47: NAJSTARIJA PLIVAČICA
A48: rang | B48: ST. BR | C48: PREZIME I IME | D48: S | E48: GOD | G48: MJESTO | H48: REK / KL | I48: rez | J48: DOM | K48: IK
A49: 43 | B49: 8 | C49: =VLOOKUP(B49,STARTNA!$A$12:$H$96,2,) -> VERINA MARIA | D49: =VLOOKUP(B49,STARTNA!$A$12:$H$96,3,) -> Ž | E49: =VLOOKUP(B49,STARTNA!$A$12:$H$96,4,) -> 1965 | F49: =VLOOKUP(B49,STARTNA!$A$12:$H$96,5,) -> M/Ž 65 | G49: =VLOOKUP(B49,STARTNA!$A$12:$H$96,6,) -> REKR | H49: =VLOOKUP(B49,STARTNA!$A$12:$H$96,7,) -> SUTIVAN | I49: 32.02

Sheet KATEGORIJE
A5: 299 OTVORENO PRVENSTVO DALMACIJE U DALJINSKOM PLIVANJU - OMIŠ 2022.
B7: dionica - 1501 metar | F7: Omiš, 20. 8. 2022.
C9: KATEGORIJE
C12: M12
A13: rang | B13: ST. BR | C13: PREZIME I IME | D13: S | E13: GOD | F13: KAT | G13: klub/rekr | H13: MJESTO | I13: rez | J13: DOM | K13: IK
A14: 1 | B14: 44 | C14: =VLOOKUP(B14,STARTNA!$A$12:$H$96,2,) -> GABELLINI DIEGO | D14: =VLOOKUP(B14,STARTNA!$A$12:$H$96,3,) -> M | E14: =VLOOKUP(B14,STARTNA!$A$12:$H$96,4,) -> 2013 | F14: =VLOOKUP(B14,STARTNA!$A$12:$H$96,5,) -> M/Ž 12 | G14: =VLOOKUP(B14,STARTNA!$A$12:$H$96,6,) -> REKR | H14: =VLOOKUP(B14,STARTNA!$A$12:$H$96,7,) -> ITALIJA | I14: 20.45 | J14: =IF($H$12:$H$138="Omiš","DOM",) -> 0 | K14: =AND(E14<2014,G14="KLUB") -> FALSE
A15: 2 | B15: 11 | C15: =VLOOKUP(B15,STARTNA!$A$12:$H$96,2,) -> BRKOVIĆ MARIN | D15: =VLOOKUP(B15,STARTNA!$A$12:$H$96,3,) -> M | E15: =VLOOKUP(B15,STARTNA!$A$12:$H$96,4,) -> 2015 | F15: =VLOOKUP(B15,STARTNA!$A$12:$H$96,5,) -> M/Ž 12 | G15: =VLOOKUP(B15,STARTNA!$A$12:$H$96,6,) -> KLUB | H15: =VLOOKUP(B15,STARTNA!$A$12:$H$96,7,) -> SPLIT | I15: 25.09 | J15: =IF($H$12:$H$138="Omiš","DOM",) -> 0 | K15: =AND(E15<2014,G15="KLUB") -> FALSE
A16: 3 | B16: 38 | C16: =VLOOKUP(B16,STARTNA!$A$12:$H$96,2,) -> BOBANOVIĆ PETAR | D16: =VLOOKUP(B16,STARTNA!$A$12:$H$96,3,) -> M | E16: =VLOOKUP(B16,STARTNA!$A$12:$H$96,4,) -> 2015 | F16: =VLOOKUP(B16,STARTNA!$A$12:$H$96,5,) -> M/Ž 12 | G16: =VLOOKUP(B16,STARTNA!$A$12:$H$96,6,) -> REKR | H16: =VLOOKUP(B16,STARTNA!$A$12:$H$96,7,) -> SPLIT | I16: 26.09 | J16: =IF($H$12:$H$138="Omiš","DOM",) -> 0 | K16: =AND(E16<2014,G16="KLUB") -> FALSE
C18: Ž12
A19: rang | B19: ST. BR | C19: PREZIME I IME | D19: S | E19: GOD | F19: KAT | G19: klub/rekr | H19: MJESTO | I19: rez | J19: DOM | K19: IK
A20: 1
C22: M15
A23: rang | B23: ST. BR | C23: PREZIME I IME | D23: S | E23: GOD | F23: KAT | G23: klub/rekr | H23: MJESTO | I23: rez | J23: DOM | K23: IK
A24: 1 | B24: 39 | C24: =VLOOKUP(B24,STARTNA!$A$12:$H$96,2,) -> BOBANOVIĆ NIKO | D24: =VLOOKUP(B24,STARTNA!$A$12:$H$96,3,) -> M | E24: =VLOOKUP(B24,STARTNA!$A$12:$H$96,4,) -> 2012 | F24: =VLOOKUP(B24,STARTNA!$A$12:$H$96,5,) -> M/Ž 15 | G24: =VLOOKUP(B24,STARTNA!$A$12:$H$96,6,) -> REKR | H24: =VLOOKUP(B24,STARTNA!$A$12:$H$96,7,) -> SPLIT | I24: 20.03 | J24: =IF($H$12:$H$138="Omiš","DOM",) -> 0 | K24: =AND(E24<2014,G24="KLUB") -> FALSE
A25: 2 | B25: 33 | C25: =VLOOKUP(B25,STARTNA!$A$12:$H$96,2,) -> BOŽAN LUKA | D25: =VLOOKUP(B25,STARTNA!$A$12:$H$96,3,) -> M | E25: =VLOOKUP(B25,STARTNA!$A$12:$H$96,4,) -> 2010 | F25: =VLOOKUP(B25,STARTNA!$A$12:$H$96,5,) -> M/Ž 15 | G25: =VLOOKUP(B25,STARTNA!$A$12:$H$96,6,) -> REKR | H25: =VLOOKUP(B25,STARTNA!$A$12:$H$96,7,) -> ZAGREB | I25: 21 | J25: =IF($H$12:$H$138="Omiš","DOM",) -> 0 | K25: =AND(E25<2014,G25="KLUB") -> FALSE
C27: Ž15
A28: rang | B28: ST. BR | C28: PREZIME I IME | D28: S | E28: GOD | F28: KAT | G28: klub/rekr | H28: MJESTO | I28: rez | J28: DOM | K28: IK
A29: 1 | B29: 31 | C29: =VLOOKUP(B29,STARTNA!$A$12:$H$96,2,) -> GALIĆ PETRA | D29: Ž | E29: =VLOOKUP(B29,STARTNA!$A$12:$H$96,4,) -> 2010 | F29: =VLOOKUP(B29,STARTNA!$A$12:$H$96,5,) -> M/Ž 15 | G29: =VLOOKUP(B29,STARTNA!$A$12:$H$96,6,) -> REKR | H29: =VLOOKUP(B29,STARTNA!$A$12:$H$96,7,) -> SPLIT | I29: 20.16 | J29: =IF($H$12:$H$138="Omiš","DOM",) -> 0 | K29: =AND(E29<2014,G29="KLUB") -> FALSE
A30: 2 | B30: 28 | C30: =VLOOKUP(B30,STARTNA!$A$12:$H$96,2,) -> ZEKANOVIĆ MIA | D30: =VLOOKUP(B30,STARTNA!$A$12:$H$96,3,) -> Ž | E30: =VLOOKUP(B30,STARTNA!$A$12:$H$96,4,) -> 2010 | F30: =VLOOKUP(B30,STARTNA!$A$12:$H$96,5,) -> M/Ž 15 | G30: =VLOOKUP(B30,STARTNA!$A$12:$H$96,6,) -> REKR | H30: =VLOOKUP(B30,STARTNA!$A$12:$H$96,7,) -> ZADAR | I30: 20.58 | J30: =IF($H$12:$H$138="Omiš","DOM",) -> 0 | K30: =AND(E30<2014,G30="KLUB") -> FALSE
A31: 3 | B31: 37 | C31: =VLOOKUP(B31,STARTNA!$A$12:$H$96,2,) -> JAKOVČIĆ ROZA | D31: =VLOOKUP(B31,STARTNA!$A$12:$H$96,3,) -> Ž | E31: =VLOOKUP(B31,STARTNA!$A$12:$H$96,4,) -> 2012 | F31: =VLOOKUP(B31,STARTNA!$A$12:$H$96,5,) -> M/Ž 15 | G31: =VLOOKUP(B31,STARTNA!$A$12:$H$96,6,) -> REKR | H31: =VLOOKUP(B31,STARTNA!$A$12:$H$96,7,) -> OMIŠ | I31: 21.02 | J31: =IF($H$12:$H$138="Omiš","DOM",) -> DOM | K31: =AND(E31<2014,G31="KLUB") -> FALSE
C33: M19
A34: rang | B34: ST. BR | C34: PREZIME I IME | D34: S | E34: GOD | F34: KAT | G34: klub/rekr | H34: MJESTO | I34: rez | J34: DOM | K34: IK
A35: 1 | B35: 32 | C35: =VLOOKUP(B35,STARTNA!$A$12:$H$96,2,) -> TAFRA MATE | D35: =VLOOKUP(B35,STARTNA!$A$12:$H$96,3,) -> M | E35: =VLOOKUP(B35,STARTNA!$A$12:$H$96,4,) -> 2009 | F35: =VLOOKUP(B35,STARTNA!$A$12:$H$96,5,) -> M/Ž 19 | G35: =VLOOKUP(B35,STARTNA!$A$12:$H$96,6,) -> REKR | H35: =VLOOKUP(B35,STARTNA!$A$12:$H$96,7,) -> OMIŠ | I35: 18.11 | J35: =IF($H$12:$H$138="Omiš","DOM",) -> DOM | K35: 0
A36: 2 | B36: 46 | C36: =VLOOKUP(B36,STARTNA!$A$12:$H$96,2,) -> MEKINIĆ PETAR | D36: =VLOOKUP(B36,STARTNA!$A$12:$H$96,3,) -> M | E36: =VLOOKUP(B36,STARTNA!$A$12:$H$96,4,) -> 2006 | F36: =VLOOKUP(B36,STARTNA!$A$12:$H$96,5,) -> M/Ž 19 | G36: =VLOOKUP(B36,STARTNA!$A$12:$H$96,6,) -> REKR | H36: =VLOOKUP(B36,STARTNA!$A$12:$H$96,7,) -> OMIŠ | I36: 29.27 | J36: =IF($H$12:$H$138="Omiš","DOM",) -> DOM | K36: =AND(E36<2014,G36="KLUB") -> FALSE
C38: Ž19
A39: rang | B39: ST. BR | C39: PREZIME I IME | D39: S | E39: GOD | F39: KAT | G39: klub/rekr | H39: MJESTO | I39: rez | J39: DOM | K39: IK
A40: 1 | B40: 30 | C40: =VLOOKUP(B40,STARTNA!$A$12:$H$96,2,) -> BRZOVIĆ ANA | D40: =VLOOKUP(B40,STARTNA!$A$12:$H$96,3,) -> Ž | E40: =VLOOKUP(B40,STARTNA!$A$12:$H$96,4,) -> 2008 | F40: =VLOOKUP(B40,STARTNA!$A$12:$H$96,5,) -> M/Ž 19 | G40: =VLOOKUP(B40,STARTNA!$A$12:$H$96,6,) -> REKR | H40: =VLOOKUP(B40,STARTNA!$A$12:$H$96,7,) -> OMIŠ | I40: 21.13 | J40: =IF($H$12:$H$138="Omiš","DOM",) -> DOM | K40: =AND(E40<2014,G40="KLUB") -> FALSE
C42: M29
A43: rang | B43: ST. BR | C43: PREZIME I IME | D43: S | E43: GOD | F43: KAT | G43: klub/rekr | H43: MJESTO | I43: rez | J43: DOM | K43: IK
A44: 1
C46: Ž29
A47: rang | B47: ST. BR | C47: PREZIME I IME | D47: S | E47: GOD | F47: KAT | G47: klub/rekr | H47: MJESTO | I47: rez | J47: DOM | K47: IK
A48: 1 | J48: =IF($H$12:$H$128="Omiš","DOM",) -> 0 | K48: =AND(E48<2011,G48="KLUB") -> FALSE
C50: M39
A51: rang | B51: ST. BR | C51: PREZIME I IME | D51: S | E51: GOD | F51: KAT | G51: klub/rekr | H51: MJESTO | I51: rez | J51: DOM | K51: IK
A52: 1 | B52: 34 | C52: =VLOOKUP(B52,STARTNA!$A$12:$H$96,2,) -> LATINOVIĆ SRĐAN | D52: =VLOOKUP(B52,STARTNA!$A$12:$H$96,3,) -> M | E52: =VLOOKUP(B52,STARTNA!$A$12:$H$96,4,) -> 1988 | F52: =VLOOKUP(B52,STARTNA!$A$12:$H$96,5,) -> M/Ž 39 | G52: =VLOOKUP(B52,STARTNA!$A$12:$H$96,6,) -> REKR | H52: =VLOOKUP(B52,STARTNA!$A$12:$H$96,7,) -> SPLIT | I52: 19.11 | J52: =IF($H$12:$H$138="Omiš","DOM",) -> 0 | K52: =AND(E52<2014,G52="KLUB") -> FALSE
A53: 2 | B53: 47 | C53: =VLOOKUP(B53,STARTNA!$A$12:$H$96,2,) -> ČAGALJ VICKO | D53: =VLOOKUP(B53,STARTNA!$A$12:$H$96,3,) -> M | E53: =VLOOKUP(B53,STARTNA!$A$12:$H$96,4,) -> 1993 | F53: =VLOOKUP(B53,STARTNA!$A$12:$H$96,5,) -> M/Ž 39 | G53: =VLOOKUP(B53,STARTNA!$A$12:$H$96,6,) -> REKR | H53: =VLOOKUP(B53,STARTNA!$A$12:$H$96,7,) -> ZAGREB | I53: 27.2 | J53: =IF($H$12:$H$138="Omiš","DOM",) -> 0 | K53: =AND(E53<2014,G53="KLUB") -> FALSE
A54: 3 | B54: 55 | C54: =VLOOKUP(B54,STARTNA!$A$12:$H$96,2,) -> PIVČEVIĆ IVO | D54: =VLOOKUP(B54,STARTNA!$A$12:$H$96,3,) -> M | E54: =VLOOKUP(B54,STARTNA!$A$12:$H$96,4,) -> 1993 | F54: =VLOOKUP(B54,STARTNA!$A$12:$H$96,5,) -> M/Ž 39 | G54: =VLOOKUP(B54,STARTNA!$A$12:$H$96,6,) -> REKR | H54: =VLOOKUP(B54,STARTNA!$A$12:$H$96,7,) -> OMIŠ | I54: 27.34 | J54: =IF($H$12:$H$138="Omiš","DOM",) -> DOM | K54: =AND(E54<2014,G54="KLUB") -> FALSE
C56: Ž39
A57: rang | B57: ST. BR | C57: PREZIME I IME | D57: S | E57: GOD | F57: KAT | G57: klub/rekr | H57: MJESTO | I57: rez | J57: DOM | K57: IK
A58: 1 | B58: 26 | C58: =VLOOKUP(B58,STARTNA!$A$12:$H$96,2,) -> GRUBIŠIĆ INES | D58: =VLOOKUP(B58,STARTNA!$A$12:$H$96,3,) -> Ž | E58: =VLOOKUP(B58,STARTNA!$A$12:$H$96,4,) -> 1995 | F58: =VLOOKUP(B58,STARTNA!$A$12:$H$96,5,) -> M/Ž 39 | G58: =VLOOKUP(B58,STARTNA!$A$12:$H$96,6,) -> REKR | H58: =VLOOKUP(B58,STARTNA!$A$12:$H$96,7,) -> ZAGREB | I58: 29.41 | J58: =IF($H$12:$H$138="Omiš","DOM",) -> 0 | K58: =AND(E58<2014,G58="KLUB") -> FALSE
A59: 2 | B59: 15 | C59: =VLOOKUP(B59,STARTNA!$A$12:$H$96,2,) -> LIPNJAK TAMARA | D59: =VLOOKUP(B59,STARTNA!$A$12:$H$96,3,) -> Ž | E59: =VLOOKUP(B59,STARTNA!$A$12:$H$96,4,) -> 1992 | F59: =VLOOKUP(B59,STARTNA!$A$12:$H$96,5,) -> M/Ž 39 | G59: =VLOOKUP(B59,STARTNA!$A$12:$H$96,6,) -> REKR | H59: =VLOOKUP(B59,STARTNA!$A$12:$H$96,7,) -> ZAGREB | I59: 31.19 | J59: =IF($H$12:$H$138="Omiš","DOM",) -> 0 | K59: =AND(E59<2014,G59="KLUB") -> FALSE
C62: M49
A63: rang | B63: ST. BR | C63: PREZIME I IME | D63: S | E63: GOD | F63: KAT | G63: klub/rekr | H63: MJESTO | I63: rez | J63: DOM | K63: IK
A64: 1 | B64: 29 | C64: =VLOOKUP(B64,STARTNA!$A$12:$H$96,2,) -> STOJANOVIĆ MIHOVIL | D64: =VLOOKUP(B64,STARTNA!$A$12:$H$96,3,) -> M | E64: =VLOOKUP(B64,STARTNA!$A$12:$H$96,4,) -> 1985 | F64: =VLOOKUP(B64,STARTNA!$A$12:$H$96,5,) -> M/Ž 49 | G64: =VLOOKUP(B64,STARTNA!$A$12:$H$96,6,) -> REKR | H64: =VLOOKUP(B64,STARTNA!$A$12:$H$96,7,) -> DRNIŠ | I64: 19.16 | J64: =IF($H$12:$H$138="Omiš","DOM",) -> 0 | K64: =AND(E64<2014,G64="KLUB") -> FALSE
A65: 2 | B65: 23 | C65: =VLOOKUP(B65,STARTNA!$A$12:$H$96,2,) -> KUNDID IGOR | D65: =VLOOKUP(B65,STARTNA!$A$12:$H$96,3,) -> M | E65: =VLOOKUP(B65,STARTNA!$A$12:$H$96,4,) -> 1981 | F65: =VLOOKUP(B65,STARTNA!$A$12:$H$96,5,) -> M/Ž 49 | G65: =VLOOKUP(B65,STARTNA!$A$12:$H$96,6,) -> REKR | H65: =VLOOKUP(B65,STARTNA!$A$12:$H$96,7,) -> STOBREČ | I65: 20.34 | J65: =IF($H$12:$H$138="Omiš","DOM",) -> 0 | K65: =AND(E65<2014,G65="KLUB") -> FALSE
A66: 3 | B66: 54 | C66: =VLOOKUP(B66,STARTNA!$A$12:$H$96,2,) -> BEBIĆ MIJO | D66: =VLOOKUP(B66,STARTNA!$A$12:$H$96,3,) -> M | E66: =VLOOKUP(B66,STARTNA!$A$12:$H$96,4,) -> 1978 | F66: =VLOOKUP(B66,STARTNA!$A$12:$H$96,5,) -> M/Ž 49 | G66: =VLOOKUP(B66,STARTNA!$A$12:$H$96,6,) -> REKR | H66: =VLOOKUP(B66,STARTNA!$A$12:$H$96,7,) -> SPLIT | I66: 21.17 | J66: =IF($H$12:$H$138="Omiš","DOM",) -> 0 | K66: =AND(E66<2014,G66="KLUB") -> FALSE
C68: Ž49
A69: rang | B69: ST. BR | C69: PREZIME I IME | D69: S | E69: GOD | F69: KAT | G69: klub/rekr | H69: MJESTO | I69: rez | J69: DOM | K69: IK
A70: 1 | B70: 21 | C70: =VLOOKUP(B70,STARTNA!$A$12:$H$96,2,) -> ARAPOVIĆ ANA | D70: =VLOOKUP(B70,STARTNA!$A$12:$H$96,3,) -> Ž | E70: =VLOOKUP(B70,STARTNA!$A$12:$H$96,4,) -> 1982 | F70: =VLOOKUP(B70,STARTNA!$A$12:$H$96,5,) -> M/Ž 49 | G70: =VLOOKUP(B70,STARTNA!$A$12:$H$96,6,) -> REKR | H70: =VLOOKUP(B70,STARTNA!$A$12:$H$96,7,) -> SPLIT | I70: 26.3 | J70: =IF($H$12:$H$138="Omiš","DOM",) -> 0 | K70: =AND(E70<2014,G70="KLUB") -> FALSE
A71: 2 | B71: 6 | C71: =VLOOKUP(B71,STARTNA!$A$12:$H$96,2,) -> KAČIĆ DUPLANČIĆ DIANA | D71: =VLOOKUP(B71,STARTNA!$A$12:$H$96,3,) -> Ž | E71: =VLOOKUP(B71,STARTNA!$A$12:$H$96,4,) -> 1978 | F71: =VLOOKUP(B71,STARTNA!$A$12:$H$96,5,) -> M/Ž 49 | G71: =VLOOKUP(B71,STARTNA!$A$12:$H$96,6,) -> REKR | H71: =VLOOKUP(B71,STARTNA!$A$12:$H$96,7,) -> SPLIT | I71: 31.33 | J71: =IF($H$12:$H$138="Omiš","DOM",) -> 0 | K71: =AND(E71<2014,G71="KLUB") -> FALSE
C73: M59
A74: rang | B74: ST. BR | C74: PREZIME I IME | D74: S | E74: GOD | F74: KAT | G74: klub/rekr | H74: MJESTO | I74: rez | J74: DOM | K74: IK
A75: 1 | B75: 27 | C75: =VLOOKUP(B75,STARTNA!$A$12:$H$96,2,) -> GRUBIŠIĆ DRAGAN | D75: =VLOOKUP(B75,STARTNA!$A$12:$H$96,3,) -> M | E75: =VLOOKUP(B75,STARTNA!$A$12:$H$96,4,) -> 1968 | F75: =VLOOKUP(B75,STARTNA!$A$12:$H$96,5,) -> M/Ž 59 | G75: =VLOOKUP(B75,STARTNA!$A$12:$H$96,6,) -> REKR | H75: =VLOOKUP(B75,STARTNA!$A$12:$H$96,7,) -> ŠIBENIK | I75: 22.24 | J75: =IF($H$12:$H$138="Omiš","DOM",) -> 0 | K75: =AND(E75<2014,G75="KLUB") -> FALSE
A76: 2 | B76: 19 | C76: =VLOOKUP(B76,STARTNA!$A$12:$H$96,2,) -> GRGAT MARIJO | D76: =VLOOKUP(B76,STARTNA!$A$12:$H$96,3,) -> M | E76: =VLOOKUP(B76,STARTNA!$A$12:$H$96,4,) -> 1974 | F76: =VLOOKUP(B76,STARTNA!$A$12:$H$96,5,) -> M/Ž 59 | G76: =VLOOKUP(B76,STARTNA!$A$12:$H$96,6,) -> REKR | H76: =VLOOKUP(B76,STARTNA!$A$12:$H$96,7,) -> DUGI RAT | I76: 25.37 | J76: =IF($H$12:$H$138="Omiš","DOM",) -> 0 | K76: =AND(E76<2014,G76="KLUB") -> FALSE
A77: 3 | B77: 45 | C77: =VLOOKUP(B77,STARTNA!$A$12:$H$96,2,) -> MANDUŠIĆ IGOR | D77: =VLOOKUP(B77,STARTNA!$A$12:$H$96,3,) -> M | E77: =VLOOKUP(B77,STARTNA!$A$12:$H$96,4,) -> 1974 | F77: =VLOOKUP(B77,STARTNA!$A$12:$H$96,5,) -> M/Ž 59 | G77: =VLOOKUP(B77,STARTNA!$A$12:$H$96,6,) -> REKR | H77: =VLOOKUP(B77,STARTNA!$A$12:$H$96,7,) -> TROGIR | I77: 25.46 | J77: =IF($H$12:$H$138="Omiš","DOM",) -> 0 | K77: =AND(E77<2014,G77="KLUB") -> FALSE
C79: Ž59
A80: rang | B80: ST. BR | C80: PREZIME I IME | D80: S | E80: GOD | F80: KAT | G80: klub/rekr | H80: MJESTO | I80: rez | J80: DOM | K80: IK
A81: 1 | B81: 36 | C81: =VLOOKUP(B81,STARTNA!$A$12:$H$96,2,) -> JAKOVČIĆ FABJANA | D81: =VLOOKUP(B81,STARTNA!$A$12:$H$96,3,) -> Ž | E81: =VLOOKUP(B81,STARTNA!$A$12:$H$96,4,) -> 1975 | F81: =VLOOKUP(B81,STARTNA!$A$12:$H$96,5,) -> M/Ž 59 | G81: =VLOOKUP(B81,STARTNA!$A$12:$H$96,6,) -> REKR | H81: =VLOOKUP(B81,STARTNA!$A$12:$H$96,7,) -> OMIŠ | I81: 32.25 | J81: =IF($H$12:$H$138="Omiš","DOM",) -> DOM | K81: =AND(E81<2014,G81="KLUB") -> FALSE
A82: 2 | B82: 14 | C82: =VLOOKUP(B82,STARTNA!$A$12:$H$96,2,) -> ŠUŠNJAR PJERA | D82: =VLOOKUP(B82,STARTNA!$A$12:$H$96,3,) -> Ž | E82: =VLOOKUP(B82,STARTNA!$A$12:$H$96,4,) -> 1967 | F82: =VLOOKUP(B82,STARTNA!$A$12:$H$96,5,) -> M/Ž 59 | G82: =VLOOKUP(B82,STARTNA!$A$12:$H$96,6,) -> REKR | H82: =VLOOKUP(B82,STARTNA!$A$12:$H$96,7,) -> SPLIT | I82: 34.45 | J82: =IF($H$12:$H$138="Omiš","DOM",) -> 0 | K82: =AND(E82<2014,G82="KLUB") -> FALSE
A83: 3 | B83: 41 | C83: =VLOOKUP(B83,STARTNA!$A$12:$H$96,2,) -> PERICA ŠINKA | D83: =VLOOKUP(B83,STARTNA!$A$12:$H$96,3,) -> Ž | E83: =VLOOKUP(B83,STARTNA!$A$12:$H$96,4,) -> 1966 | F83: =VLOOKUP(B83,STARTNA!$A$12:$H$96,5,) -> M/Ž 59 | G83: =VLOOKUP(B83,STARTNA!$A$12:$H$96,6,) -> REKR | H83: =VLOOKUP(B83,STARTNA!$A$12:$H$96,7,) -> OMIŠ | I83: 39.44 | J83: =IF($H$12:$H$138="Omiš","DOM",) -> DOM | K83: =AND(E83<2014,G83="KLUB") -> FALSE
C86: M65
A87: rang | B87: ST. BR | C87: PREZIME I IME | D87: S | E87: GOD | F87: KAT | G87: klub/rekr | H87: MJESTO | I87: rez | J87: DOM | K87: IK
A88: 1 | B88: 12 | C88: =VLOOKUP(B88,STARTNA!$A$12:$H$96,2,) -> DUMANIĆ NAĐAN | D88: =VLOOKUP(B88,STARTNA!$A$12:$H$96,3,) -> M | E88: =VLOOKUP(B88,STARTNA!$A$12:$H$96,4,) -> 1962 | F88: =VLOOKUP(B88,STARTNA!$A$12:$H$96,5,) -> M/Ž 65 | G88: =VLOOKUP(B88,STARTNA!$A$12:$H$96,6,) -> REKR | H88: =VLOOKUP(B88,STARTNA!$A$12:$H$96,7,) -> SPLIT | I88: 34.11 | J88: =IF($H$12:$H$138="Omiš","DOM",) -> 0 | K88: =AND(E88<2014,G88="KLUB") -> FALSE
A89: 2 | B89: 3 | C89: =VLOOKUP(B89,STARTNA!$A$12:$H$96,2,) -> ŠKORIĆ JOSIP | D89: =VLOOKUP(B89,STARTNA!$A$12:$H$96,3,) -> M | E89: =VLOOKUP(B89,STARTNA!$A$12:$H$96,4,) -> 1960 | F89: =VLOOKUP(B89,STARTNA!$A$12:$H$96,5,) -> M/Ž 65 | G89: =VLOOKUP(B89,STARTNA!$A$12:$H$96,6,) -> REKR | H89: =VLOOKUP(B89,STARTNA!$A$12:$H$96,7,) -> BIH | I89: 35.04 | J89: =IF($H$12:$H$138="Omiš","DOM",) -> 0 | K89: =AND(E89<2014,G89="KLUB") -> FALSE
A90: 3 | B90: 13 | C90: =VLOOKUP(B90,STARTNA!$A$12:$H$96,2,) -> ŠUŠNJAR MARIN | D90: =VLOOKUP(B90,STARTNA!$A$12:$H$96,3,) -> M | E90: =VLOOKUP(B90,STARTNA!$A$12:$H$96,4,) -> 1961 | F90: =VLOOKUP(B90,STARTNA!$A$12:$H$96,5,) -> M/Ž 65 | G90: =VLOOKUP(B90,STARTNA!$A$12:$H$96,6,) -> REKR | H90: =VLOOKUP(B90,STARTNA!$A$12:$H$96,7,) -> SPLIT | I90: 37.29 | J90: =IF($H$12:$H$138="Omiš","DOM",) -> 0 | K90: =AND(E90<2014,G90="KLUB") -> FALSE
C92: Ž65
A93: rang
A94: 1 | B94: 8 | C94: =VLOOKUP(B94,STARTNA!$A$12:$H$96,2,) -> VERINA MARIA | D94: =VLOOKUP(B94,STARTNA!$A$12:$H$96,3,) -> Ž | E94: =VLOOKUP(B94,STARTNA!$A$12:$H$96,4,) -> 1965 | F94: =VLOOKUP(B94,STARTNA!$A$12:$H$96,5,) -> M/Ž 65 | G94: =VLOOKUP(B94,STARTNA!$A$12:$H$96,6,) -> REKR | H94: =VLOOKUP(B94,STARTNA!$A$12:$H$96,7,) -> SUTIVAN | I94: 32.02 | J94: =IF($H$12:$H$138="Omiš","DOM",) -> 0 | K94: =AND(E94<2014,G94="KLUB") -> FALSE
C96: M70
A97: rang | B97: ST. BR | C97: PREZIME I IME | D97: S | E97: GOD | F97: KAT | G97: klub/rekr | H97: MJESTO | I97: rez | J97: DOM | K97: IK
A98: 1 | B98: 4 | C98: =VLOOKUP(B98,STARTNA!$A$12:$H$96,2,) -> ĆOSIĆ HRVOJE | D98: =VLOOKUP(B98,STARTNA!$A$12:$H$96,3,) -> M | E98: =VLOOKUP(B98,STARTNA!$A$12:$H$96,4,) -> 1959 | F98: =VLOOKUP(B98,STARTNA!$A$12:$H$96,5,) -> M/Ž 70 | G98: =VLOOKUP(B98,STARTNA!$A$12:$H$96,6,) -> REKR | H98: =VLOOKUP(B98,STARTNA!$A$12:$H$96,7,) -> BIH | I98: 34.07 | J98: =IF($H$12:$H$138="Omiš","DOM",) -> 0 | K98: =AND(E98<2014,G98="KLUB") -> FALSE
A99: 2 | B99: 56 | C99: =VLOOKUP(B99,STARTNA!$A$12:$H$96,2,) -> MIMICA MIROSLAV | D99: =VLOOKUP(B99,STARTNA!$A$12:$H$96,3,) -> M | E99: =VLOOKUP(B99,STARTNA!$A$12:$H$96,4,) -> 1958 | F99: =VLOOKUP(B99,STARTNA!$A$12:$H$96,5,) -> M/Ž 70 | G99: =VLOOKUP(B99,STARTNA!$A$12:$H$96,6,) -> REKR | H99: =VLOOKUP(B99,STARTNA!$A$12:$H$96,7,) -> DUGI RAT | I99: 40.37 | J99: =IF($H$12:$H$138="Omiš","DOM",) -> 0 | K99: =AND(E99<2014,G99="KLUB") -> FALSE
C101: Ž70
A102: rang
A103: 1
C105: M75
A106: rang | B106: ST. BR | C106: PREZIME I IME | D106: S | E106: GOD | F106: KAT | G106: klub/rekr | H106: MJESTO | I106: rez | J106: DOM | K106: IK
A107: 1 | B107: 1 | C107: =VLOOKUP(B107,STARTNA!$A$12:$H$96,2,) -> PRVAN BORKO | D107: =VLOOKUP(B107,STARTNA!$A$12:$H$96,3,) -> M | E107: =VLOOKUP(B107,STARTNA!$A$12:$H$96,4,) -> 1951 | F107: =VLOOKUP(B107,STARTNA!$A$12:$H$96,5,) -> M/Ž 75 | G107: =VLOOKUP(B107,STARTNA!$A$12:$H$96,6,) -> REKR | H107: =VLOOKUP(B107,STARTNA!$A$12:$H$96,7,) -> ZAGREB | I107: 21.51 | J107: =IF($H$12:$H$138="Omiš","DOM",) -> 0 | K107: =AND(E107<2014,G107="KLUB") -> FALSE
A108: 2 | B108: 7 | C108: =VLOOKUP(B108,STARTNA!$A$12:$H$96,2,) -> KEKEZ ANTE | D108: =VLOOKUP(B108,STARTNA!$A$12:$H$96,3,) -> M | E108: =VLOOKUP(B108,STARTNA!$A$12:$H$96,4,) -> 1950 | F108: =VLOOKUP(B108,STARTNA!$A$12:$H$96,5,) -> M/Ž 75 | G108: =VLOOKUP(B108,STARTNA!$A$12:$H$96,6,) -> REKR | H108: =VLOOKUP(B108,STARTNA!$A$12:$H$96,7,) -> OMIŠ | I108: 27.48 | J108: =IF($H$12:$H$138="Omiš","DOM",) -> DOM | K108: =AND(E108<2014,G108="KLUB") -> FALSE
A109: 3 | B109: 5 | C109: =VLOOKUP(B109,STARTNA!$A$12:$H$96,2,) -> KAČIĆ ZORAN | D109: =VLOOKUP(B109,STARTNA!$A$12:$H$96,3,) -> M | E109: =VLOOKUP(B109,STARTNA!$A$12:$H$96,4,) -> 1950 | F109: =VLOOKUP(B109,STARTNA!$A$12:$H$96,5,) -> M/Ž 75 | G109: =VLOOKUP(B109,STARTNA!$A$12:$H$96,6,) -> REKR | H109: =VLOOKUP(B109,STARTNA!$A$12:$H$96,7,) -> SPLIT | I109: 28.16 | J109: =IF($H$12:$H$138="Omiš","DOM",) -> 0 | K109: =AND(E109<2014,G109="KLUB") -> FALSE
C111: Ž75
A112: rang
A113: 1
C115: M76 +
A116: rang | B116: ST. BR | C116: PREZIME I IME | D116: S | E116: GOD | F116: KAT | G116: klub/rekr | H116: MJESTO | I116: rez | J116: DOM | K116: IK
A117: 1
C119: Ž76 +
A120: rang
A121: 1
